Body Name,Body,Service area categorisation,Expense Type,Date paid,Transaction Reference,Net,Supplier Name,
East Lindsey District Council,http://statistics.data.gov.uk/id/local-authority/32UC,Corporate Management,Telephones,04/12/2014,IJ00038942,37.89,BT PLC, 
East Lindsey District Council,http://statistics.data.gov.uk/id/local-authority/32UC,Corporate Management,Telephones,04/12/2014,IJ00038942,2852.56,BT PLC, 
East Lindsey District Council,http://statistics.data.gov.uk/id/local-authority/32UC,ED: General Marketing & Promotion,Telephones,04/12/2014,IJ00038942,113.67,BT PLC, 
East Lindsey District Council,http://statistics.data.gov.uk/id/local-authority/32UC,Swimming Pool(Coronation Wk)H/Castle,Telephones,04/12/2014,IJ00038942,8.83,BT PLC, 
East Lindsey District Council,http://statistics.data.gov.uk/id/local-authority/32UC,Station Sports Centre,Telephones,04/12/2014,IJ00038942,4.68,BT PLC, 
East Lindsey District Council,http://statistics.data.gov.uk/id/local-authority/32UC,Foreshore - Theatre,Telephones,04/12/2014,IJ00038942,55.00,BT PLC, 
East Lindsey District Council,http://statistics.data.gov.uk/id/local-authority/32UC,Corporate Management,Telephones,04/12/2014,IJ00038942,240.56,BT PLC, 
East Lindsey District Council,http://statistics.data.gov.uk/id/local-authority/32UC,Policy & Implementation,Other Miscellaneous Expenses,04/12/2014,IJ00038918,3236.98,NORTH KESTEVEN DISTRICT COUNCIL, 
East Lindsey District Council,http://statistics.data.gov.uk/id/local-authority/32UC,Internal Drainage Boards,Internal Drainage Board Levies,04/12/2014,IJ00038859,170084.93,WITHAM FOURTH DISTRICT INTERNAL, 
East Lindsey District Council,http://statistics.data.gov.uk/id/local-authority/32UC,Enabling Activities Housing Advice,Other Miscellaneous Expenses,04/12/2014,IJ00038866,500.00,STEVENS PROPERTY MANAGEMENT, 
East Lindsey District Council,http://statistics.data.gov.uk/id/local-authority/32UC,Policy & Implementation,Other Miscellaneous Expenses,04/12/2014,IJ00038916,3236.98,BOSTON BOROUGH COUNCIL, 
East Lindsey District Council,http://statistics.data.gov.uk/id/local-authority/32UC,Corporate Management,Lincolnshire Legal Services,04/12/2014,IJ00038904,22079.58,LINCOLNSHIRE COUNTY COUNCIL, 
East Lindsey District Council,http://statistics.data.gov.uk/id/local-authority/32UC,Corporate Management,Lincolnshire Legal Services,04/12/2014,IJ00038904,14434.16,LINCOLNSHIRE COUNTY COUNCIL, 
East Lindsey District Council,http://statistics.data.gov.uk/id/local-authority/32UC,Land Charges,Professional & Contractors Fees,04/12/2014,IJ00038927,4272.00,LINCOLNSHIRE COUNTY COUNCIL, 
East Lindsey District Council,http://statistics.data.gov.uk/id/local-authority/32UC,Internal Drainage Boards,Internal Drainage Board Levies,04/12/2014,IJ00038856,635149.00,LINDSEY MARSH DRAINAGE BOARD, 
East Lindsey District Council,http://statistics.data.gov.uk/id/local-authority/32UC,Policy & Implementation,Other Miscellaneous Expenses,04/12/2014,IJ00038919,3236.98,CITY OF LINCOLN, 
East Lindsey District Council,http://statistics.data.gov.uk/id/local-authority/32UC,Car Parks General,Buildings Maintenance - Programmed,04/12/2014,IJ00038894,1079.46,DEVLIN DECORATORS LTD, 
East Lindsey District Council,http://statistics.data.gov.uk/id/local-authority/32UC,Car Parks General,Buildings Maintenance - Responsive,04/12/2014,IJ00038895,505.17,DEVLIN DECORATORS LTD, 
East Lindsey District Council,http://statistics.data.gov.uk/id/local-authority/32UC,Outdoor Sport & Recreation - Neighbourhood Services,Professional & Contractors Fees,04/12/2014,IJ00038908,1530.00,EKM LTD, 
East Lindsey District Council,http://statistics.data.gov.uk/id/local-authority/32UC,Area Working North,Materials and Consumables,04/12/2014,IJ00038914,263.90,ESPO, 
East Lindsey District Council,http://statistics.data.gov.uk/id/local-authority/32UC,Meridian Leisure Centre,Stationery,04/12/2014,IJ00038914,101.08,ESPO, 
East Lindsey District Council,http://statistics.data.gov.uk/id/local-authority/32UC,ED: General Marketing & Promotion,Stationery,04/12/2014,IJ00038914,2.70,ESPO, 
East Lindsey District Council,http://statistics.data.gov.uk/id/local-authority/32UC,Wellbeing Service,Stationery,04/12/2014,IJ00038914,133.62,ESPO, 
East Lindsey District Council,http://statistics.data.gov.uk/id/local-authority/32UC,Planning Enforcement,Other Miscellaneous Expenses,04/12/2014,IJ00038914,26.50,ESPO, 
East Lindsey District Council,http://statistics.data.gov.uk/id/local-authority/32UC,Embassy Centre,Gas,04/12/2014,IJ00038912,-4213.95,ESPO, 
East Lindsey District Council,http://statistics.data.gov.uk/id/local-authority/32UC,Embassy Centre,Gas,04/12/2014,IJ00038912,-1361.88,ESPO, 
East Lindsey District Council,http://statistics.data.gov.uk/id/local-authority/32UC,Embassy Centre,Gas,04/12/2014,IJ00038912,914.90,ESPO, 
East Lindsey District Council,http://statistics.data.gov.uk/id/local-authority/32UC,Embassy Centre,Gas,04/12/2014,IJ00038912,1154.17,ESPO, 
East Lindsey District Council,http://statistics.data.gov.uk/id/local-authority/32UC,Embassy Centre,Gas,04/12/2014,IJ00038912,716.97,ESPO, 
East Lindsey District Council,http://statistics.data.gov.uk/id/local-authority/32UC,Embassy Centre,Gas,04/12/2014,IJ00038912,1249.52,ESPO, 
East Lindsey District Council,http://statistics.data.gov.uk/id/local-authority/32UC,Embassy Centre,Gas,04/12/2014,IJ00038912,406.25,ESPO, 
East Lindsey District Council,http://statistics.data.gov.uk/id/local-authority/32UC,Swimming Pool(Coronation Wk)H/Castle,Gas,04/12/2014,IJ00038912,1129.94,ESPO, 
East Lindsey District Council,http://statistics.data.gov.uk/id/local-authority/32UC,Meridian Leisure Centre,Gas,04/12/2014,IJ00038912,5232.03,ESPO, 
East Lindsey District Council,http://statistics.data.gov.uk/id/local-authority/32UC,Embassy Swimming Pool(Skegness),Gas,04/12/2014,IJ00038912,-22528.54,ESPO, 
East Lindsey District Council,http://statistics.data.gov.uk/id/local-authority/32UC,Embassy Swimming Pool(Skegness),Gas,04/12/2014,IJ00038912,406.80,ESPO, 
East Lindsey District Council,http://statistics.data.gov.uk/id/local-authority/32UC,Embassy Swimming Pool(Skegness),Gas,04/12/2014,IJ00038912,3221.89,ESPO, 
East Lindsey District Council,http://statistics.data.gov.uk/id/local-authority/32UC,Embassy Swimming Pool(Skegness),Gas,04/12/2014,IJ00038912,13769.52,ESPO, 
East Lindsey District Council,http://statistics.data.gov.uk/id/local-authority/32UC,Embassy Swimming Pool(Skegness),Gas,04/12/2014,IJ00038912,5381.63,ESPO, 
East Lindsey District Council,http://statistics.data.gov.uk/id/local-authority/32UC,Embassy Swimming Pool(Skegness),Gas,04/12/2014,IJ00038912,4664.59,ESPO, 
East Lindsey District Council,http://statistics.data.gov.uk/id/local-authority/32UC,Playing Fields(Memorial) Wainfleet Skeg,Gas,04/12/2014,IJ00038912,165.96,ESPO, 
East Lindsey District Council,http://statistics.data.gov.uk/id/local-authority/32UC,Meridian Leisure Centre,Electricity,04/12/2014,IJ00038912,159.35,ESPO, 
East Lindsey District Council,http://statistics.data.gov.uk/id/local-authority/32UC,Public Buildings,Gas,04/12/2014,IJ00038912,12.62,ESPO, 
East Lindsey District Council,http://statistics.data.gov.uk/id/local-authority/32UC,Public Buildings,Gas,04/12/2014,IJ00038912,1187.77,ESPO, 
East Lindsey District Council,http://statistics.data.gov.uk/id/local-authority/32UC,Public Buildings,Gas,04/12/2014,IJ00038912,83.22,ESPO, 
East Lindsey District Council,http://statistics.data.gov.uk/id/local-authority/32UC,Public Buildings,Gas,04/12/2014,IJ00038912,1349.99,ESPO, 
East Lindsey District Council,http://statistics.data.gov.uk/id/local-authority/32UC,ED: General Marketing & Promotion,Gas,04/12/2014,IJ00038912,287.48,ESPO, 
East Lindsey District Council,http://statistics.data.gov.uk/id/local-authority/32UC,Station Sports Centre,Gas,04/12/2014,IJ00038912,247.69,ESPO, 
East Lindsey District Council,http://statistics.data.gov.uk/id/local-authority/32UC,ED: General Marketing & Promotion,Gas,04/12/2014,IJ00038912,282.08,ESPO, 
East Lindsey District Council,http://statistics.data.gov.uk/id/local-authority/32UC,Public Buildings,Gas,04/12/2014,IJ00038912,166.77,ESPO, 
East Lindsey District Council,http://statistics.data.gov.uk/id/local-authority/32UC,London Road Sports Centre,Gas,04/12/2014,IJ00038912,218.19,ESPO, 
East Lindsey District Council,http://statistics.data.gov.uk/id/local-authority/32UC,PPE Other Land & Buildings,Gas,04/12/2014,IJ00038912,31.93,ESPO, 
East Lindsey District Council,http://statistics.data.gov.uk/id/local-authority/32UC,Caravan Park (Kingfisher) Ingoldmells,Gas,04/12/2014,IJ00038912,60.42,ESPO, 
East Lindsey District Council,http://statistics.data.gov.uk/id/local-authority/32UC,Corporate Management,Subscriptions to Organisations and Other Bodies,04/12/2014,IJ00038821,650.00,CHRISTOPHER DONKIN, 
East Lindsey District Council,http://statistics.data.gov.uk/id/local-authority/32UC,Corporate Management,Subscriptions to Organisations and Other Bodies,04/12/2014,IJ00038871,600.00,CHRISTOPHER DONKIN, 
East Lindsey District Council,http://statistics.data.gov.uk/id/local-authority/32UC,Corporate Management,Subscriptions to Organisations and Other Bodies,04/12/2014,IJ00038941,550.00,CHRISTOPHER DONKIN, 
East Lindsey District Council,http://statistics.data.gov.uk/id/local-authority/32UC,Meridian Leisure Centre,Furniture and Equipment,04/12/2014,IJ00038939,811.33,LIFE FITNESS, 
East Lindsey District Council,http://statistics.data.gov.uk/id/local-authority/32UC,Commissioning & Grants,Grants and Contributions to Outside Bodies- No Service Recei,04/12/2014,IJ00038836,800.00,BAUMBER VILLAGE HALL COMMITTEE, 
East Lindsey District Council,http://statistics.data.gov.uk/id/local-authority/32UC,Meridian Leisure Centre,Purchase Of Goods For Resale,04/12/2014,IJ00038822,754.29,SRS LEISURE, 
East Lindsey District Council,http://statistics.data.gov.uk/id/local-authority/32UC,Policy & Implementation,Other Miscellaneous Expenses,04/12/2014,IJ00038917,3236.98,WEST LINDSEY DISTRICT COUNCIL, 
East Lindsey District Council,http://statistics.data.gov.uk/id/local-authority/32UC,Private Sector Housing Renovation Grants,Grants and Contributions to Outside Bodies- No Service Recei,04/12/2014,IJ00038923,1080.00,DOLPHIN MOBILITY EAST MIDLANDS, 
East Lindsey District Council,http://statistics.data.gov.uk/id/local-authority/32UC,Embassy Centre,Performers and Entertainers Fees,04/12/2014,IJ00038886,15161.28,STAGE RIGHT PROMOTIONS LTD, 
East Lindsey District Council,http://statistics.data.gov.uk/id/local-authority/32UC,Embassy Centre,Performers and Entertainers Fees,04/12/2014,IJ00038886,-210.00,STAGE RIGHT PROMOTIONS LTD, 
East Lindsey District Council,http://statistics.data.gov.uk/id/local-authority/32UC,Embassy Centre,Performers and Entertainers Fees,04/12/2014,IJ00038887,1008.89,STAGE RIGHT PROMOTIONS LTD, 
East Lindsey District Council,http://statistics.data.gov.uk/id/local-authority/32UC,Embassy Centre,Performers and Entertainers Fees,04/12/2014,IJ00038887,-210.00,STAGE RIGHT PROMOTIONS LTD, 
East Lindsey District Council,http://statistics.data.gov.uk/id/local-authority/32UC,Development Control,Other Private Contractors,04/12/2014,IJ00038940,6367.93,LGS LIMITED, 
East Lindsey District Council,http://statistics.data.gov.uk/id/local-authority/32UC,London Road Sports Centre,Materials and Consumables,04/12/2014,IJ00038865,524.00,ASHBY GRASS CARE, 
East Lindsey District Council,http://statistics.data.gov.uk/id/local-authority/32UC,Compass Point Business Services,Compass Point Business Services,04/12/2014,IJ00038903,423015.25,COMPASS POINT BUSINESS SERVICES, 
East Lindsey District Council,http://statistics.data.gov.uk/id/local-authority/32UC,Embassy Centre,Performers and Entertainers Fees,04/12/2014,IJ00038876,19000.00,JAMIE MARCUS PRODUCTIONS LTD, 
East Lindsey District Council,http://statistics.data.gov.uk/id/local-authority/32UC,Arboriculture,Professional & Contractors Fees,04/12/2014,IJ00038814,550.00,B & B TREE SPECIALISTS, 
East Lindsey District Council,http://statistics.data.gov.uk/id/local-authority/32UC,Private Sector Housing Renovation Grants,Grants and Contributions to Outside Bodies- No Service Recei,04/12/2014,IJ00038924,2072.40,THM CONSTRUCTION, 
East Lindsey District Council,http://statistics.data.gov.uk/id/local-authority/32UC,Community Safety/CCTV,Professional & Contractors Fees,04/12/2014,IJ00038863,1592.00,SAFE & SOUND SECURITY SYSTEMS LINKS LTD, 
East Lindsey District Council,http://statistics.data.gov.uk/id/local-authority/32UC,Community Parks & Open Spaces - Neighbourhood Services,Water and Sewerage Charges,04/12/2014,IJ00038900,2238.38,ANGLIAN WATER, 
East Lindsey District Council,http://statistics.data.gov.uk/id/local-authority/32UC,Embassy Centre,Water and Sewerage Charges,04/12/2014,IJ00038901,3068.97,ANGLIAN WATER, 
East Lindsey District Council,http://statistics.data.gov.uk/id/local-authority/32UC,Car Parks General,Furniture and Equipment,04/12/2014,IJ00038897,244.75,GRS SIGN CO LTD, 
East Lindsey District Council,http://statistics.data.gov.uk/id/local-authority/32UC,Public Relations,Advertising - Events,04/12/2014,IJ00038897,84.14,GRS SIGN CO LTD, 
East Lindsey District Council,http://statistics.data.gov.uk/id/local-authority/32UC,ED: General Marketing & Promotion,Other Miscellaneous Expenses,04/12/2014,IJ00038897,185.00,GRS SIGN CO LTD, 
East Lindsey District Council,http://statistics.data.gov.uk/id/local-authority/32UC,ED: General Marketing & Promotion,Other Miscellaneous Expenses,04/12/2014,IJ00038897,124.00,GRS SIGN CO LTD, 
East Lindsey District Council,http://statistics.data.gov.uk/id/local-authority/32UC,Street Scene Improvement & Development,Advertising - Events,04/12/2014,IJ00038897,590.00,GRS SIGN CO LTD, 
East Lindsey District Council,http://statistics.data.gov.uk/id/local-authority/32UC,Car Parks General,Buildings Maintenance - Programmed,04/12/2014,IJ00038897,78.39,GRS SIGN CO LTD, 
East Lindsey District Council,http://statistics.data.gov.uk/id/local-authority/32UC,Embassy Centre,Performers and Entertainers Fees,04/12/2014,IJ00038885,2557.15,LISA JAY STAGE INSTITUTE, 
East Lindsey District Council,http://statistics.data.gov.uk/id/local-authority/32UC,Embassy Centre,Performers and Entertainers Fees,04/12/2014,IJ00038885,-600.00,LISA JAY STAGE INSTITUTE, 
East Lindsey District Council,http://statistics.data.gov.uk/id/local-authority/32UC,Street Scene Improvement & Development,Clothing Uniforms And Laundry,04/12/2014,IJ00038818,598.85,SAFETY MANAGEMENT INT GROUP, 
East Lindsey District Council,http://statistics.data.gov.uk/id/local-authority/32UC,Health Improvement,Furniture and Equipment,04/12/2014,IJ00038799,777.00,GASP, 
East Lindsey District Council,http://statistics.data.gov.uk/id/local-authority/32UC,Health Improvement,Furniture and Equipment,04/12/2014,IJ00038800,1177.35,GASP, 
East Lindsey District Council,http://statistics.data.gov.uk/id/local-authority/32UC,Leisure Management General,Clothing Uniforms And Laundry,04/12/2014,IJ00038920,14120.34,PRINTFORCE (STAFFS) LTD, 
East Lindsey District Council,http://statistics.data.gov.uk/id/local-authority/32UC,Leisure Management General,Clothing Uniforms And Laundry,04/12/2014,IJ00038921,2508.78,PRINTFORCE (STAFFS) LTD, 
East Lindsey District Council,http://statistics.data.gov.uk/id/local-authority/32UC,Household & Trade Refuse Coll. General,Fuel & Oil,04/12/2014,IJ00038423,23229.50,EMO OIL LIMITED, 
East Lindsey District Council,http://statistics.data.gov.uk/id/local-authority/32UC,Embassy Centre,Performers and Entertainers Fees,04/12/2014,IJ00038884,8455.42,DREAMBOYS LONDON LTD, 
East Lindsey District Council,http://statistics.data.gov.uk/id/local-authority/32UC,Embassy Centre,Performers and Entertainers Fees,04/12/2014,IJ00038884,-210.00,DREAMBOYS LONDON LTD, 
East Lindsey District Council,http://statistics.data.gov.uk/id/local-authority/32UC,Household & Trade Refuse Coll. General,Computer Software Licence Costs,04/12/2014,IJ00038813,18640.00,BARTEC AUDIO ID LTD, 
East Lindsey District Council,http://statistics.data.gov.uk/id/local-authority/32UC,Commissioning & Grants,Grants and Contributions to Outside Bodies- No Service Recei,04/12/2014,IJ00038867,535.00,HORNCASTLE TOWN FOOTBALL CLUB, 
East Lindsey District Council,http://statistics.data.gov.uk/id/local-authority/32UC,Embassy Centre,Performers and Entertainers Fees,04/12/2014,IJ00038888,5752.98,Jamie Wilson Productions Ltd, 
East Lindsey District Council,http://statistics.data.gov.uk/id/local-authority/32UC,Embassy Centre,Performers and Entertainers Fees,04/12/2014,IJ00038888,-270.00,Jamie Wilson Productions Ltd, 
East Lindsey District Council,http://statistics.data.gov.uk/id/local-authority/32UC,Cultural Activities,Professional & Contractors Fees,04/12/2014,IJ00038843,2748.00,Lorna Fulton, 
East Lindsey District Council,http://statistics.data.gov.uk/id/local-authority/32UC,Household & Trade Refuse Coll. General,Agency Staff,04/12/2014,IJ00038811,1369.88,BIBBY FACTORS YORKSHIRE LIMITED, 
East Lindsey District Council,http://statistics.data.gov.uk/id/local-authority/32UC,Household & Trade Refuse Coll. General,Agency Staff,04/12/2014,IJ00038910,1467.06,BIBBY FACTORS YORKSHIRE LIMITED, 
East Lindsey District Council,http://statistics.data.gov.uk/id/local-authority/32UC,Cultural Activities,Furniture and Equipment,04/12/2014,IJ00038820,3200.00,SRP TOILET HIRE LTD, 
East Lindsey District Council,http://statistics.data.gov.uk/id/local-authority/32UC,London Road Sports Centre,Other Private Contractors,04/12/2014,IJ00038848,2465.00,REVELATIONS, 
East Lindsey District Council,http://statistics.data.gov.uk/id/local-authority/32UC,Embassy Centre,Furniture and Equipment,04/12/2014,IJ00038878,1097.99,Celexon UK Ltd, 
East Lindsey District Council,http://statistics.data.gov.uk/id/local-authority/32UC,Other Operating Expenditure,Gain or Loss on Sale of Non Current Assets,04/12/2014,IJ00038873,188637.00,LOUTH SPORTS ASSOCIATION, 
East Lindsey District Council,http://statistics.data.gov.uk/id/local-authority/32UC,Embassy Centre,Banking Charges,10/12/2014,IJ00039018,5.80,BARCLAYS MERCHANT SERVICES, 
East Lindsey District Council,http://statistics.data.gov.uk/id/local-authority/32UC,Embassy Centre,Banking Charges,10/12/2014,IJ00039018,292.13,BARCLAYS MERCHANT SERVICES, 
East Lindsey District Council,http://statistics.data.gov.uk/id/local-authority/32UC,Foreshore - Theatre,Banking Charges,10/12/2014,IJ00039018,300.00,BARCLAYS MERCHANT SERVICES, 
East Lindsey District Council,http://statistics.data.gov.uk/id/local-authority/32UC,Embassy Centre,Purchase Of Goods For Resale,10/12/2014,IJ00039131,5.80,BARCLAYS MERCHANT SERVICES, 
East Lindsey District Council,http://statistics.data.gov.uk/id/local-authority/32UC,Embassy Centre,Purchase Of Goods For Resale,10/12/2014,IJ00039131,517.29,BARCLAYS MERCHANT SERVICES, 
East Lindsey District Council,http://statistics.data.gov.uk/id/local-authority/32UC,Household & Trade Refuse Coll. General,Fuel & Oil,10/12/2014,IJ00039127,23008.39,EMO OIL LIMITED, 
East Lindsey District Council,http://statistics.data.gov.uk/id/local-authority/32UC,Public Buildings,Buildings Maintenance - Programmed,10/12/2014,IJ00039086,11061.91,Cannon Fire Protection Ltd, 
East Lindsey District Council,http://statistics.data.gov.uk/id/local-authority/32UC,Swimming Pool(Coronation Wk)H/Castle,Other agencies,11/12/2014,IJ00038976,6674.75,COMPETITION LINE (UK) LTD, 
East Lindsey District Council,http://statistics.data.gov.uk/id/local-authority/32UC,Embassy Swimming Pool(Skegness),Other agencies,11/12/2014,IJ00038977,3357.83,COMPETITION LINE (UK) LTD, 
East Lindsey District Council,http://statistics.data.gov.uk/id/local-authority/32UC,Caravan Park (Kingfisher) Ingoldmells,Professional & Contractors Fees,11/12/2014,IJ00039073,836.80,SID DENNIS & SONS LTD, 
East Lindsey District Council,http://statistics.data.gov.uk/id/local-authority/32UC,Private Sector Housing Renovation Grants,Other Income,11/12/2014,IJ00039129,-542.61,SIBJON BUILDERS, 
East Lindsey District Council,http://statistics.data.gov.uk/id/local-authority/32UC,Private Sector Housing Renovation Grants,Grants and Contributions to Outside Bodies- No Service Recei,11/12/2014,IJ00039129,6077.23,SIBJON BUILDERS, 
East Lindsey District Council,http://statistics.data.gov.uk/id/local-authority/32UC,IT - System Support,Professional & Contractors Fees,11/12/2014,IJ00038964,750.00,BOSTON BOROUGH COUNCIL, 
East Lindsey District Council,http://statistics.data.gov.uk/id/local-authority/32UC,IT - System Support,Professional & Contractors Fees,11/12/2014,IJ00038965,1922.28,BOSTON BOROUGH COUNCIL, 
East Lindsey District Council,http://statistics.data.gov.uk/id/local-authority/32UC,Household & Trade Refuse Coll. General,Professional & Contractors Fees,11/12/2014,IJ00039010,98731.26,BOSTON BOROUGH COUNCIL, 
East Lindsey District Council,http://statistics.data.gov.uk/id/local-authority/32UC,ED: General Marketing & Promotion,Postages,11/12/2014,IJ00038981,787.00,ROYAL MAIL, 
East Lindsey District Council,http://statistics.data.gov.uk/id/local-authority/32UC,Household & Trade Refuse Coll. General,Maintenance,11/12/2014,IJ00039039,935.00,Redacted Personal Information,Redacted
East Lindsey District Council,http://statistics.data.gov.uk/id/local-authority/32UC,Member Services,Grants and Contributions to Outside Bodies- No Service Recei,11/12/2014,IJ00038837,750.00,WAINFLEET ALL SAINTS TOWN COUNCIL, 
East Lindsey District Council,http://statistics.data.gov.uk/id/local-authority/32UC,Meridian Leisure Centre,Professional & Contractors Fees,11/12/2014,IJ00039107,1460.47,TOWN & COUNTRY KIDDIES, 
East Lindsey District Council,http://statistics.data.gov.uk/id/local-authority/32UC,Meridian Leisure Centre,Professional & Contractors Fees,11/12/2014,IJ00039109,816.00,TOWN & COUNTRY KIDDIES, 
East Lindsey District Council,http://statistics.data.gov.uk/id/local-authority/32UC,Footway Lighting,Electricity,11/12/2014,IJ00039096,3741.69,SOUTHERN ELECTRIC PLC, 
East Lindsey District Council,http://statistics.data.gov.uk/id/local-authority/32UC,Footway Lighting,Electricity,11/12/2014,IJ00039096,44.69,SOUTHERN ELECTRIC PLC, 
East Lindsey District Council,http://statistics.data.gov.uk/id/local-authority/32UC,Community Parks & Open Spaces - Neighbourhood Services,Electricity,11/12/2014,IJ00039096,33.62,SOUTHERN ELECTRIC PLC, 
East Lindsey District Council,http://statistics.data.gov.uk/id/local-authority/32UC,Car Parks General,Electricity,11/12/2014,IJ00039096,4.22,SOUTHERN ELECTRIC PLC, 
East Lindsey District Council,http://statistics.data.gov.uk/id/local-authority/32UC,Car Parks General,Electricity,11/12/2014,IJ00039096,17.59,SOUTHERN ELECTRIC PLC, 
East Lindsey District Council,http://statistics.data.gov.uk/id/local-authority/32UC,Car Parks General,Electricity,11/12/2014,IJ00039096,17.59,SOUTHERN ELECTRIC PLC, 
East Lindsey District Council,http://statistics.data.gov.uk/id/local-authority/32UC,Car Parks General,Electricity,11/12/2014,IJ00039096,14.31,SOUTHERN ELECTRIC PLC, 
East Lindsey District Council,http://statistics.data.gov.uk/id/local-authority/32UC,Car Parks General,Electricity,11/12/2014,IJ00039096,20.47,SOUTHERN ELECTRIC PLC, 
East Lindsey District Council,http://statistics.data.gov.uk/id/local-authority/32UC,Car Parks General,Electricity,11/12/2014,IJ00039096,38.06,SOUTHERN ELECTRIC PLC, 
East Lindsey District Council,http://statistics.data.gov.uk/id/local-authority/32UC,Car Parks General,Electricity,11/12/2014,IJ00039096,46.14,SOUTHERN ELECTRIC PLC, 
East Lindsey District Council,http://statistics.data.gov.uk/id/local-authority/32UC,Car Parks General,Electricity,11/12/2014,IJ00039096,13.37,SOUTHERN ELECTRIC PLC, 
East Lindsey District Council,http://statistics.data.gov.uk/id/local-authority/32UC,Car Parks General,Electricity,11/12/2014,IJ00039096,32.72,SOUTHERN ELECTRIC PLC, 
East Lindsey District Council,http://statistics.data.gov.uk/id/local-authority/32UC,Cemeteries - Neighbourhood Services,Electricity,11/12/2014,IJ00039096,4.65,SOUTHERN ELECTRIC PLC, 
East Lindsey District Council,http://statistics.data.gov.uk/id/local-authority/32UC,Car Parks General,Electricity,11/12/2014,IJ00039096,41.77,SOUTHERN ELECTRIC PLC, 
East Lindsey District Council,http://statistics.data.gov.uk/id/local-authority/32UC,Embassy Swimming Pool(Skegness),Electricity,11/12/2014,IJ00039092,2106.67,SOUTHERN ELECTRIC PLC, 
East Lindsey District Council,http://statistics.data.gov.uk/id/local-authority/32UC,ED: General Marketing & Promotion,Agency Staff,11/12/2014,IJ00038983,97.79,WORKFORCE UNLIMITED, 
East Lindsey District Council,http://statistics.data.gov.uk/id/local-authority/32UC,ED: General Marketing & Promotion,Agency Staff,11/12/2014,IJ00038983,749.10,WORKFORCE UNLIMITED, 
East Lindsey District Council,http://statistics.data.gov.uk/id/local-authority/32UC,ED: General Marketing & Promotion,Agency Staff,11/12/2014,IJ00038984,763.09,WORKFORCE UNLIMITED, 
East Lindsey District Council,http://statistics.data.gov.uk/id/local-authority/32UC,Car Parks General,Payments to Bodies in Respect of Income Collected,11/12/2014,IJ00039014,9176.36,TESCOS STORES LTD, 
East Lindsey District Council,http://statistics.data.gov.uk/id/local-authority/32UC,Wellbeing Service,Grants and Contributions- Where a Service is Received,11/12/2014,IJ00039144,560.00,LIVES, 
East Lindsey District Council,http://statistics.data.gov.uk/id/local-authority/32UC,Balance Sheet,VAT Customs and Excise,11/12/2014,IJ00038959,1179.00,JACOBS, 
East Lindsey District Council,http://statistics.data.gov.uk/id/local-authority/32UC,Balance Sheet,VAT Customs and Excise,11/12/2014,IJ00039001,1101.23,JACOBS, 
East Lindsey District Council,http://statistics.data.gov.uk/id/local-authority/32UC,Balance Sheet,VAT Customs and Excise,11/12/2014,IJ00039002,843.36,JACOBS, 
East Lindsey District Council,http://statistics.data.gov.uk/id/local-authority/32UC,Balance Sheet,Payroll Sacrifice Nursery Voucher,11/12/2014,IJ00039065,2737.00,SODEXHO, 
East Lindsey District Council,http://statistics.data.gov.uk/id/local-authority/32UC,Car Parks General,Professional & Contractors Fees,11/12/2014,IJ00038954,4054.34,METRIC GROUP LTD, 
East Lindsey District Council,http://statistics.data.gov.uk/id/local-authority/32UC,Wellbeing Service,Professional & Contractors Fees,11/12/2014,IJ00038955,7237.00,NEW LINX HOUSING TRUST, 
East Lindsey District Council,http://statistics.data.gov.uk/id/local-authority/32UC,Private Sector Housing Renovation Grants,Other Income,11/12/2014,IJ00039062,-115.00,OBAM STAIRLIFTS, 
East Lindsey District Council,http://statistics.data.gov.uk/id/local-authority/32UC,Private Sector Housing Renovation Grants,Grants and Contributions to Outside Bodies- No Service Recei,11/12/2014,IJ00039062,1288.00,OBAM STAIRLIFTS, 
East Lindsey District Council,http://statistics.data.gov.uk/id/local-authority/32UC,Environmental Protection,Furniture and Equipment,11/12/2014,IJ00038946,835.00,GEOTECHNICAL INSTRUMENTS UK LTD, 
East Lindsey District Council,http://statistics.data.gov.uk/id/local-authority/32UC,Community Parks & Open Spaces - Neighbourhood Services,Grounds Maintenance Contract (External),11/12/2014,IJ00039055,22711.81,VEOLIA ES (UK) LIMITED, 
East Lindsey District Council,http://statistics.data.gov.uk/id/local-authority/32UC,Footway Lighting,Electricity,11/12/2014,IJ00039095,1919.99,E.ON ENERGY, 
East Lindsey District Council,http://statistics.data.gov.uk/id/local-authority/32UC,Community Parks & Open Spaces - Neighbourhood Services,Electricity,11/12/2014,IJ00039095,6.79,E.ON ENERGY, 
East Lindsey District Council,http://statistics.data.gov.uk/id/local-authority/32UC,Car Parks General,Electricity,11/12/2014,IJ00039095,6.12,E.ON ENERGY, 
East Lindsey District Council,http://statistics.data.gov.uk/id/local-authority/32UC,Car Parks General,Electricity,11/12/2014,IJ00039095,7.20,E.ON ENERGY, 
East Lindsey District Council,http://statistics.data.gov.uk/id/local-authority/32UC,Car Parks General,Electricity,11/12/2014,IJ00039095,17.49,E.ON ENERGY, 
East Lindsey District Council,http://statistics.data.gov.uk/id/local-authority/32UC,Car Parks General,Electricity,11/12/2014,IJ00039095,20.02,E.ON ENERGY, 
East Lindsey District Council,http://statistics.data.gov.uk/id/local-authority/32UC,Car Parks General,Electricity,11/12/2014,IJ00039095,41.10,E.ON ENERGY, 
East Lindsey District Council,http://statistics.data.gov.uk/id/local-authority/32UC,Car Parks General,Electricity,11/12/2014,IJ00039095,8.22,E.ON ENERGY, 
East Lindsey District Council,http://statistics.data.gov.uk/id/local-authority/32UC,Car Parks General,Electricity,11/12/2014,IJ00039095,13.24,E.ON ENERGY, 
East Lindsey District Council,http://statistics.data.gov.uk/id/local-authority/32UC,Car Parks General,Electricity,11/12/2014,IJ00039095,15.47,E.ON ENERGY, 
East Lindsey District Council,http://statistics.data.gov.uk/id/local-authority/32UC,Embassy Centre,Performers and Entertainers Fees,11/12/2014,IJ00039111,2385.29,LEE JAMES ASSOCIATES LIMITED, 
East Lindsey District Council,http://statistics.data.gov.uk/id/local-authority/32UC,Embassy Centre,Performers and Entertainers Fees,11/12/2014,IJ00039111,-210.00,LEE JAMES ASSOCIATES LIMITED, 
East Lindsey District Council,http://statistics.data.gov.uk/id/local-authority/32UC,Community Parks & Open Spaces - Property,Grants and Contributions to Outside Bodies- No Service Recei,11/12/2014,IJ00039105,1234.00,RODDEN & COOPER, 
East Lindsey District Council,http://statistics.data.gov.uk/id/local-authority/32UC,Area Working South,Maintenance,11/12/2014,IJ00039038,2071.17,WOODTHORPE BODYWORKS LTD, 
East Lindsey District Council,http://statistics.data.gov.uk/id/local-authority/32UC,Meridian Leisure Centre,Professional & Contractors Fees,11/12/2014,IJ00039140,500.83,AQUA VITA CAFE, 
East Lindsey District Council,http://statistics.data.gov.uk/id/local-authority/32UC,Meridian Leisure Centre,Professional & Contractors Fees,11/12/2014,IJ00038950,1520.00,Redacted Personal Information,Redacted
East Lindsey District Council,http://statistics.data.gov.uk/id/local-authority/32UC,Tourist Info Centre,Payments to Bodies in Respect of Income Collected,11/12/2014,IJ00038973,1157.05,NATIONAL EXPRESS CREDIT CONTROL DEPT, 
East Lindsey District Council,http://statistics.data.gov.uk/id/local-authority/32UC,Tourist Info Centre,Payments to Bodies in Respect of Income Collected,11/12/2014,IJ00038973,2465.66,NATIONAL EXPRESS CREDIT CONTROL DEPT, 
East Lindsey District Council,http://statistics.data.gov.uk/id/local-authority/32UC,Tourist Info Centre,Payments to Bodies in Respect of Income Collected,11/12/2014,IJ00038973,453.26,NATIONAL EXPRESS CREDIT CONTROL DEPT, 
East Lindsey District Council,http://statistics.data.gov.uk/id/local-authority/32UC,Tourist Info Centre,Payments to Bodies in Respect of Income Collected,11/12/2014,IJ00038973,23.35,NATIONAL EXPRESS CREDIT CONTROL DEPT, 
East Lindsey District Council,http://statistics.data.gov.uk/id/local-authority/32UC,Cultural Activities,Voluntary associations,11/12/2014,IJ00039136,10368.14,WOODHALL SPA COTTAGE MUSEUM, 
East Lindsey District Council,http://statistics.data.gov.uk/id/local-authority/32UC,Embassy Centre,Performers and Entertainers Fees,11/12/2014,IJ00039114,1967.68,DEREK BLOCK CONCERT PROMOTIONS LTD, 
East Lindsey District Council,http://statistics.data.gov.uk/id/local-authority/32UC,Embassy Centre,Performers and Entertainers Fees,11/12/2014,IJ00039114,-235.00,DEREK BLOCK CONCERT PROMOTIONS LTD, 
East Lindsey District Council,http://statistics.data.gov.uk/id/local-authority/32UC,Household & Trade Refuse Coll. General,Materials and Consumables,11/12/2014,IJ00039126,150.00,GRS SIGN CO LTD, 
East Lindsey District Council,http://statistics.data.gov.uk/id/local-authority/32UC,Markets General,Materials and Consumables,11/12/2014,IJ00039126,312.50,GRS SIGN CO LTD, 
East Lindsey District Council,http://statistics.data.gov.uk/id/local-authority/32UC,Tourism,Grants and Contributions to Outside Bodies- No Service Recei,11/12/2014,IJ00039126,122.00,GRS SIGN CO LTD, 
East Lindsey District Council,http://statistics.data.gov.uk/id/local-authority/32UC,Street Scene Improvement & Development,Furniture and Equipment,11/12/2014,IJ00039126,1127.28,GRS SIGN CO LTD, 
East Lindsey District Council,http://statistics.data.gov.uk/id/local-authority/32UC,Investment Properties - Property Services,Professional & Contractors Fees,11/12/2014,IJ00038987,7266.03,FREETH CARTWRIGHT LLP, 
East Lindsey District Council,http://statistics.data.gov.uk/id/local-authority/32UC,Louth Cattle Market,Professional & Contractors Fees,11/12/2014,IJ00038988,155.00,FREETH CARTWRIGHT LLP, 
East Lindsey District Council,http://statistics.data.gov.uk/id/local-authority/32UC,Louth Cattle Market,Professional & Contractors Fees,11/12/2014,IJ00038988,3414.50,FREETH CARTWRIGHT LLP, 
East Lindsey District Council,http://statistics.data.gov.uk/id/local-authority/32UC,Corporate Level Resources,External Audit Fees,11/12/2014,IJ00038975,16827.50,KPMG LLP, 
East Lindsey District Council,http://statistics.data.gov.uk/id/local-authority/32UC,Private Sector Housing Renovation Grants,Other Income,11/12/2014,IJ00039130,-807.19,MARK DONNER LTD, 
East Lindsey District Council,http://statistics.data.gov.uk/id/local-authority/32UC,Private Sector Housing Renovation Grants,Grants and Contributions to Outside Bodies- No Service Recei,11/12/2014,IJ00039130,4824.56,MARK DONNER LTD, 
East Lindsey District Council,http://statistics.data.gov.uk/id/local-authority/32UC,ED: General Marketing & Promotion,Cleaning Contract,11/12/2014,IJ00038982,862.70,EASY CLEAN MARSHCHAPEL LTD, 
East Lindsey District Council,http://statistics.data.gov.uk/id/local-authority/32UC,Street Cleaning,Materials and Consumables,11/12/2014,IJ00038944,1419.21,Tennant Uk Cleaning Solutions Ltd, 
East Lindsey District Council,http://statistics.data.gov.uk/id/local-authority/32UC,Cultural Activities,Staff Travelling Expenses (including Public Transport),11/12/2014,IJ00038929,3483.32,BUTLINS SKYLINE LTD, 
East Lindsey District Council,http://statistics.data.gov.uk/id/local-authority/32UC,Commissioning & Grants,Other agencies,11/12/2014,IJ00039071,9000.00,LINCOLNSHIRE CVS, 
East Lindsey District Council,http://statistics.data.gov.uk/id/local-authority/32UC,ED: General Marketing & Promotion,Other Miscellaneous Expenses,11/12/2014,IJ00038979,1275.00,OPTIMA GRAPHIC DESIGN CONSULTANTS LTD, 
East Lindsey District Council,http://statistics.data.gov.uk/id/local-authority/32UC,ED: General Marketing & Promotion,Other Miscellaneous Expenses,11/12/2014,IJ00039011,980.00,Peter Thorpe Financial Consultant, 
East Lindsey District Council,http://statistics.data.gov.uk/id/local-authority/32UC,Meridian Leisure Centre,Buildings Maintenance - Responsive,11/12/2014,IJ00039081,625.34,Dalesauna Ltd, 
East Lindsey District Council,http://statistics.data.gov.uk/id/local-authority/32UC,Household & Trade Refuse Coll. General,Commercial Vehicle Lease,11/12/2014,IJ00039029,14962.22,Kier FPS Limited, 
East Lindsey District Council,http://statistics.data.gov.uk/id/local-authority/32UC,Member Services,Grants and Contributions to Outside Bodies- No Service Recei,11/12/2014,IJ00039072,1000.00,Home Start East Lindsey, 
East Lindsey District Council,http://statistics.data.gov.uk/id/local-authority/32UC,Corporate Management,Computer Software Purchase,11/12/2014,IJ00039013,525.00,Inform CPI Ltd, 
East Lindsey District Council,http://statistics.data.gov.uk/id/local-authority/32UC,Sports Development,Other Miscellaneous Expenses,11/12/2014,IJ00039060,1500.00,BOX CLEVER THEATRE COMPANY, 
East Lindsey District Council,http://statistics.data.gov.uk/id/local-authority/32UC,Private Sector Housing Renovation Grants,Grants and Contributions to Outside Bodies- No Service Recei,11/12/2014,IJ00039064,6162.50,Redacted Personal Information,Redacted
East Lindsey District Council,http://statistics.data.gov.uk/id/local-authority/32UC,Household & Trade Refuse Coll. General,Agency Staff,11/12/2014,IJ00039128,1199.71,BIBBY FACTORS YORKSHIRE LIMITED, 
East Lindsey District Council,http://statistics.data.gov.uk/id/local-authority/32UC,ED: General Marketing & Promotion,Other Miscellaneous Expenses,11/12/2014,IJ00038980,9492.00,Countryside Training Partnership Ltd, 
East Lindsey District Council,http://statistics.data.gov.uk/id/local-authority/32UC,ED: General Marketing & Promotion,Other Miscellaneous Expenses,11/12/2014,IJ00039143,4384.30,Michael A Singh, 
East Lindsey District Council,http://statistics.data.gov.uk/id/local-authority/32UC,Information Management,Staff Training Expenses,11/12/2014,IJ00039015,795.00,PDP TRAINING, 
East Lindsey District Council,http://statistics.data.gov.uk/id/local-authority/32UC,Markets General,Agency Staff,11/12/2014,IJ00039063,954.00,LYNX MOTORHOMES LTD, 
East Lindsey District Council,http://statistics.data.gov.uk/id/local-authority/32UC,Capital WIP,"Purchase of Plant, Machinery & Equipment",11/12/2014,IJ00039113,4571.40,Egbert H Taylor and Co Ltd, 
East Lindsey District Council,http://statistics.data.gov.uk/id/local-authority/32UC,Private Sector Housing Renovation Grants,Other Income,11/12/2014,IJ00039061,-700.00,Stephen Scott Builder and Joiner, 
East Lindsey District Council,http://statistics.data.gov.uk/id/local-authority/32UC,Private Sector Housing Renovation Grants,Grants and Contributions to Outside Bodies- No Service Recei,11/12/2014,IJ00039061,7686.75,Stephen Scott Builder and Joiner, 
East Lindsey District Council,http://statistics.data.gov.uk/id/local-authority/32UC,Private Sector Housing Renovation Grants,Grants and Contributions to Outside Bodies- No Service Recei,11/12/2014,IJ00039061,153.25,Stephen Scott Builder and Joiner, 
East Lindsey District Council,http://statistics.data.gov.uk/id/local-authority/32UC,Embassy Centre,Performers and Entertainers Fees,11/12/2014,IJ00039116,3763.66,Mario Productions, 
East Lindsey District Council,http://statistics.data.gov.uk/id/local-authority/32UC,Embassy Centre,Performers and Entertainers Fees,11/12/2014,IJ00039116,-570.00,Mario Productions, 
East Lindsey District Council,http://statistics.data.gov.uk/id/local-authority/32UC,IT - System Support,Professional & Contractors Fees,11/12/2014,IJ00039076,15395.00,Hitachi Solutions Europe Ltd, 
East Lindsey District Council,http://statistics.data.gov.uk/id/local-authority/32UC,IT - System Support,Professional & Contractors Fees,11/12/2014,IJ00039139,555.92,Hitachi Solutions Europe Ltd, 
East Lindsey District Council,http://statistics.data.gov.uk/id/local-authority/32UC,Member Services,Grants and Contributions to Outside Bodies- No Service Recei,11/12/2014,IJ00039118,800.00,Utterby District Church Council, 
East Lindsey District Council,http://statistics.data.gov.uk/id/local-authority/32UC,Embassy Swimming Pool(Skegness),Buildings Maintenance - Responsive,18/12/2014,IJ00039279,514.00,ALLDREAD MAINTENANCE SERVICES, 
East Lindsey District Council,http://statistics.data.gov.uk/id/local-authority/32UC,Private Sector Housing Renovation Grants,Grants and Contributions to Outside Bodies- No Service Recei,18/12/2014,IJ00039349,4086.94,SIBJON BUILDERS, 
East Lindsey District Council,http://statistics.data.gov.uk/id/local-authority/32UC,Embassy Centre,Purchase Of Goods For Resale,18/12/2014,IJ00039260,861.11,SKEGNESS CREAM ICE CO LTD, 
East Lindsey District Council,http://statistics.data.gov.uk/id/local-authority/32UC,Cultural Activities,Conference and Seminars,18/12/2014,IJ00039243,780.00,LOCAL GOVERNMENT ASSOCIATION, 
East Lindsey District Council,http://statistics.data.gov.uk/id/local-authority/32UC,Public Buildings,Buildings Maintenance - Programmed,18/12/2014,IJ00039350,11061.91,HSBC INVOICE FINANCE (UK) LTD, 
East Lindsey District Council,http://statistics.data.gov.uk/id/local-authority/32UC,Public Buildings,Other Miscellaneous Expenses,18/12/2014,IJ00039322,640.54,VENDING ENTERPRISES, 
East Lindsey District Council,http://statistics.data.gov.uk/id/local-authority/32UC,Tourism,Grants and Contributions to Outside Bodies- No Service Recei,18/12/2014,IJ00039254,12940.00,SEYMOUR & CASTLE LTD, 
East Lindsey District Council,http://statistics.data.gov.uk/id/local-authority/32UC,Elections,Staff Training Expenses,18/12/2014,IJ00039298,684.00,CITY OF LINCOLN, 
East Lindsey District Council,http://statistics.data.gov.uk/id/local-authority/32UC,ED: General Marketing & Promotion,Agency Staff,18/12/2014,IJ00039229,475.77,WORKFORCE UNLIMITED, 
East Lindsey District Council,http://statistics.data.gov.uk/id/local-authority/32UC,ED: General Marketing & Promotion,Agency Staff,18/12/2014,IJ00039229,391.17,WORKFORCE UNLIMITED, 
East Lindsey District Council,http://statistics.data.gov.uk/id/local-authority/32UC,Embassy Swimming Pool(Skegness),Buildings Maintenance - Programmed,18/12/2014,IJ00039287,1734.39,DEVLIN DECORATORS LTD, 
East Lindsey District Council,http://statistics.data.gov.uk/id/local-authority/32UC,Elections,Subscriptions to Organisations and Other Bodies,18/12/2014,IJ00039300,906.00,LEXISNEXIS UK, 
East Lindsey District Council,http://statistics.data.gov.uk/id/local-authority/32UC,Balance Sheet,VAT Customs and Excise,18/12/2014,IJ00039189,834.37,JACOBS, 
East Lindsey District Council,http://statistics.data.gov.uk/id/local-authority/32UC,Embassy Centre,Buildings Maintenance - Programmed,18/12/2014,IJ00039285,250.00,HIGHWIRE TESTING SERVICES LIMITED, 
East Lindsey District Council,http://statistics.data.gov.uk/id/local-authority/32UC,Meridian Leisure Centre,Buildings Maintenance - Programmed,18/12/2014,IJ00039285,525.00,HIGHWIRE TESTING SERVICES LIMITED, 
East Lindsey District Council,http://statistics.data.gov.uk/id/local-authority/32UC,Public Buildings,Buildings Maintenance - Programmed,18/12/2014,IJ00039285,250.00,HIGHWIRE TESTING SERVICES LIMITED, 
East Lindsey District Council,http://statistics.data.gov.uk/id/local-authority/32UC,ED: General Marketing & Promotion,Buildings Maintenance - Programmed,18/12/2014,IJ00039285,250.00,HIGHWIRE TESTING SERVICES LIMITED, 
East Lindsey District Council,http://statistics.data.gov.uk/id/local-authority/32UC,Area Working North,Materials and Consumables,18/12/2014,IJ00039207,13.20,ESPO, 
East Lindsey District Council,http://statistics.data.gov.uk/id/local-authority/32UC,Embassy Swimming Pool(Skegness),Materials and Consumables,18/12/2014,IJ00039207,83.19,ESPO, 
East Lindsey District Council,http://statistics.data.gov.uk/id/local-authority/32UC,Meridian Leisure Centre,Furniture and Equipment,18/12/2014,IJ00039207,168.00,ESPO, 
East Lindsey District Council,http://statistics.data.gov.uk/id/local-authority/32UC,Member Services,Stationery,18/12/2014,IJ00039207,12.05,ESPO, 
East Lindsey District Council,http://statistics.data.gov.uk/id/local-authority/32UC,Property Management,Stationery,18/12/2014,IJ00039207,35.91,ESPO, 
East Lindsey District Council,http://statistics.data.gov.uk/id/local-authority/32UC,Caravan Park (Kingfisher) Ingoldmells,Materials and Consumables,18/12/2014,IJ00039207,28.97,ESPO, 
East Lindsey District Council,http://statistics.data.gov.uk/id/local-authority/32UC,Caravan Park (Kingfisher) Ingoldmells,Stationery,18/12/2014,IJ00039207,68.86,ESPO, 
East Lindsey District Council,http://statistics.data.gov.uk/id/local-authority/32UC,Embassy Swimming Pool(Skegness),Furniture and Equipment,18/12/2014,IJ00039207,1186.30,ESPO, 
East Lindsey District Council,http://statistics.data.gov.uk/id/local-authority/32UC,Property Management,Furniture and Equipment,18/12/2014,IJ00039207,295.00,ESPO, 
East Lindsey District Council,http://statistics.data.gov.uk/id/local-authority/32UC,Sports Development,Stationery,18/12/2014,IJ00039207,13.00,ESPO, 
East Lindsey District Council,http://statistics.data.gov.uk/id/local-authority/32UC,Development Control,Stationery,18/12/2014,IJ00039240,31.08,ESPO, 
East Lindsey District Council,http://statistics.data.gov.uk/id/local-authority/32UC,Embassy Centre,Cleaning Contract,18/12/2014,IJ00039240,228.20,ESPO, 
East Lindsey District Council,http://statistics.data.gov.uk/id/local-authority/32UC,Area Working North,Materials and Consumables,18/12/2014,IJ00039240,371.20,ESPO, 
East Lindsey District Council,http://statistics.data.gov.uk/id/local-authority/32UC,Meridian Leisure Centre,Furniture and Equipment,18/12/2014,IJ00039240,477.74,ESPO, 
East Lindsey District Council,http://statistics.data.gov.uk/id/local-authority/32UC,Station Sports Centre,Furniture and Equipment,18/12/2014,IJ00039240,22.47,ESPO, 
East Lindsey District Council,http://statistics.data.gov.uk/id/local-authority/32UC,Embassy Swimming Pool(Skegness),Furniture and Equipment,18/12/2014,IJ00039240,333.00,ESPO, 
East Lindsey District Council,http://statistics.data.gov.uk/id/local-authority/32UC,Station Sports Centre,Stationery,18/12/2014,IJ00039240,22.80,ESPO, 
East Lindsey District Council,http://statistics.data.gov.uk/id/local-authority/32UC,Station Sports Centre,Cleaning Contract,18/12/2014,IJ00039240,152.01,ESPO, 
East Lindsey District Council,http://statistics.data.gov.uk/id/local-authority/32UC,Playing Fields(Memorial) Wainfleet Skeg,Cleaning Contract,18/12/2014,IJ00039240,8.80,ESPO, 
East Lindsey District Council,http://statistics.data.gov.uk/id/local-authority/32UC,Member Services,Course Fees,18/12/2014,IJ00039162,500.00,UNIVERSITY OF BIRMINGHAM, 
East Lindsey District Council,http://statistics.data.gov.uk/id/local-authority/32UC,Meridian Leisure Centre,Other Miscellaneous Expenses,18/12/2014,IJ00039218,482.85,DEE BEE, 
East Lindsey District Council,http://statistics.data.gov.uk/id/local-authority/32UC,Meridian Leisure Centre,Purchase Of Goods For Resale,18/12/2014,IJ00039218,149.80,DEE BEE, 
East Lindsey District Council,http://statistics.data.gov.uk/id/local-authority/32UC,Embassy Centre,Other Miscellaneous Expenses,18/12/2014,IJ00039257,11.89,DEE BEE, 
East Lindsey District Council,http://statistics.data.gov.uk/id/local-authority/32UC,Embassy Centre,Other Miscellaneous Expenses,18/12/2014,IJ00039257,1159.35,DEE BEE, 
East Lindsey District Council,http://statistics.data.gov.uk/id/local-authority/32UC,Private Sector Housing Renovation Grants,Grants and Contributions to Outside Bodies- No Service Recei,18/12/2014,IJ00039348,3550.00,OBAM STAIRLIFTS, 
East Lindsey District Council,http://statistics.data.gov.uk/id/local-authority/32UC,Investment Properties - Property Services,Grounds Maintenance Contract (External),18/12/2014,IJ00039313,725.00,VEOLIA ES (UK) LIMITED, 
East Lindsey District Council,http://statistics.data.gov.uk/id/local-authority/32UC,Arboriculture,Professional & Contractors Fees,18/12/2014,IJ00039315,500.00,VEOLIA ES (UK) LIMITED, 
East Lindsey District Council,http://statistics.data.gov.uk/id/local-authority/32UC,Environmental Protection,Grants and Contributions to Outside Bodies- No Service Recei,18/12/2014,IJ00039077,10200.00,PELL PLANT HIRE LTD, 
East Lindsey District Council,http://statistics.data.gov.uk/id/local-authority/32UC,Environmental Protection,Grants and Contributions to Outside Bodies- No Service Recei,18/12/2014,IJ00039146,4540.00,PELL PLANT HIRE LTD, 
East Lindsey District Council,http://statistics.data.gov.uk/id/local-authority/32UC,Environmental Protection,Grants and Contributions to Outside Bodies- No Service Recei,18/12/2014,IJ00039323,1500.00,PELL PLANT HIRE LTD, 
East Lindsey District Council,http://statistics.data.gov.uk/id/local-authority/32UC,Household & Trade Refuse Coll. General,Telephones,18/12/2014,IJ00039167,38.58,MULTIDATA (EUROPE), 
East Lindsey District Council,http://statistics.data.gov.uk/id/local-authority/32UC,Household & Trade Refuse Coll. General,Telephones,18/12/2014,IJ00039167,38.58,MULTIDATA (EUROPE), 
East Lindsey District Council,http://statistics.data.gov.uk/id/local-authority/32UC,Car Parks General,Telephones,18/12/2014,IJ00039167,59.25,MULTIDATA (EUROPE), 
East Lindsey District Council,http://statistics.data.gov.uk/id/local-authority/32UC,IT - System Support,Telephones,18/12/2014,IJ00039167,87.00,MULTIDATA (EUROPE), 
East Lindsey District Council,http://statistics.data.gov.uk/id/local-authority/32UC,ED: General Marketing & Promotion,Internet Broadband Payments,18/12/2014,IJ00039167,75.00,MULTIDATA (EUROPE), 
East Lindsey District Council,http://statistics.data.gov.uk/id/local-authority/32UC,IT - System Support,Internet Broadband Payments,18/12/2014,IJ00039167,579.76,MULTIDATA (EUROPE), 
East Lindsey District Council,http://statistics.data.gov.uk/id/local-authority/32UC,IT - System Support,Internet Broadband Payments,18/12/2014,IJ00039167,253.50,MULTIDATA (EUROPE), 
East Lindsey District Council,http://statistics.data.gov.uk/id/local-authority/32UC,Property Management,Internet Broadband Payments,18/12/2014,IJ00039167,75.00,MULTIDATA (EUROPE), 
East Lindsey District Council,http://statistics.data.gov.uk/id/local-authority/32UC,Household & Trade Refuse Coll. General,Internet Broadband Payments,18/12/2014,IJ00039167,75.00,MULTIDATA (EUROPE), 
East Lindsey District Council,http://statistics.data.gov.uk/id/local-authority/32UC,Household & Trade Refuse Coll. General,Internet Broadband Payments,18/12/2014,IJ00039167,75.00,MULTIDATA (EUROPE), 
East Lindsey District Council,http://statistics.data.gov.uk/id/local-authority/32UC,IT - System Support,Internet Broadband Payments,18/12/2014,IJ00039167,90.00,MULTIDATA (EUROPE), 
East Lindsey District Council,http://statistics.data.gov.uk/id/local-authority/32UC,IT - System Support,Internet Broadband Payments,18/12/2014,IJ00039167,75.00,MULTIDATA (EUROPE), 
East Lindsey District Council,http://statistics.data.gov.uk/id/local-authority/32UC,IT - System Support,Internet Broadband Payments,18/12/2014,IJ00039167,113.58,MULTIDATA (EUROPE), 
East Lindsey District Council,http://statistics.data.gov.uk/id/local-authority/32UC,IT - System Support,Internet Broadband Payments,18/12/2014,IJ00039167,75.00,MULTIDATA (EUROPE), 
East Lindsey District Council,http://statistics.data.gov.uk/id/local-authority/32UC,Car Parks General,Payments to Bodies in Respect of Income Collected,18/12/2014,IJ00039232,7621.71,INNES ENGLAND COMMERCIAL PROPERTY, 
East Lindsey District Council,http://statistics.data.gov.uk/id/local-authority/32UC,Car Parks General,Buildings Maintenance - Programmed,18/12/2014,IJ00039277,5107.52,RIGGOTT & CO LTD, 
East Lindsey District Council,http://statistics.data.gov.uk/id/local-authority/32UC,Member Services,Grants and Contributions to Outside Bodies- No Service Recei,18/12/2014,IJ00039253,600.00,GREAT CARLTON VILLAGE HALL, 
East Lindsey District Council,http://statistics.data.gov.uk/id/local-authority/32UC,Area Working North,Agency Staff,18/12/2014,IJ00039150,597.38,THE WORKSHOP (WISBECH) LIMITED, 
East Lindsey District Council,http://statistics.data.gov.uk/id/local-authority/32UC,Area Working North,Agency Staff,18/12/2014,IJ00039151,663.75,THE WORKSHOP (WISBECH) LIMITED, 
East Lindsey District Council,http://statistics.data.gov.uk/id/local-authority/32UC,Meridian Leisure Centre,Professional & Contractors Fees,18/12/2014,IJ00039234,584.50,AQUA VITA CAFE, 
East Lindsey District Council,http://statistics.data.gov.uk/id/local-authority/32UC,Meridian Leisure Centre,Buildings Maintenance - Programmed,18/12/2014,IJ00039276,998.00,RUBAROC, 
East Lindsey District Council,http://statistics.data.gov.uk/id/local-authority/32UC,Property Management,Professional & Contractors Fees,18/12/2014,IJ00039163,600.00,FOCUS CONSULTANTS 2010 LLP, 
East Lindsey District Council,http://statistics.data.gov.uk/id/local-authority/32UC,Street Naming,Buildings Maintenance - Responsive,18/12/2014,IJ00039291,649.16,J TOMLINSON LTD, 
East Lindsey District Council,http://statistics.data.gov.uk/id/local-authority/32UC,Embassy Centre,Buildings Maintenance - Responsive,18/12/2014,IJ00039340,91.57,J TOMLINSON LTD, 
East Lindsey District Council,http://statistics.data.gov.uk/id/local-authority/32UC,Embassy Centre,Buildings Maintenance - Responsive,18/12/2014,IJ00039340,1436.93,J TOMLINSON LTD, 
East Lindsey District Council,http://statistics.data.gov.uk/id/local-authority/32UC,Caravan Park (Kingfisher) Ingoldmells,Buildings Maintenance - Responsive,18/12/2014,IJ00039340,106.43,J TOMLINSON LTD, 
East Lindsey District Council,http://statistics.data.gov.uk/id/local-authority/32UC,Community Parks & Open Spaces - Theatre,Buildings Maintenance - Responsive,18/12/2014,IJ00039340,146.46,J TOMLINSON LTD, 
East Lindsey District Council,http://statistics.data.gov.uk/id/local-authority/32UC,Community Parks & Open Spaces - Theatre,Buildings Maintenance - Responsive,18/12/2014,IJ00039340,584.23,J TOMLINSON LTD, 
East Lindsey District Council,http://statistics.data.gov.uk/id/local-authority/32UC,Embassy Swimming Pool(Skegness),Buildings Maintenance - Responsive,18/12/2014,IJ00039340,36.75,J TOMLINSON LTD, 
East Lindsey District Council,http://statistics.data.gov.uk/id/local-authority/32UC,Embassy Swimming Pool(Skegness),Buildings Maintenance - Responsive,18/12/2014,IJ00039340,254.38,J TOMLINSON LTD, 
East Lindsey District Council,http://statistics.data.gov.uk/id/local-authority/32UC,Embassy Swimming Pool(Skegness),Buildings Maintenance - Responsive,18/12/2014,IJ00039340,56.50,J TOMLINSON LTD, 
East Lindsey District Council,http://statistics.data.gov.uk/id/local-authority/32UC,Embassy Swimming Pool(Skegness),Buildings Maintenance - Responsive,18/12/2014,IJ00039340,91.79,J TOMLINSON LTD, 
East Lindsey District Council,http://statistics.data.gov.uk/id/local-authority/32UC,Community Parks & Open Spaces - Neighbourhood Services,Buildings Maintenance - Responsive,18/12/2014,IJ00039340,76.56,J TOMLINSON LTD, 
East Lindsey District Council,http://statistics.data.gov.uk/id/local-authority/32UC,Community Parks & Open Spaces - Neighbourhood Services,Buildings Maintenance - Responsive,18/12/2014,IJ00039340,787.30,J TOMLINSON LTD, 
East Lindsey District Council,http://statistics.data.gov.uk/id/local-authority/32UC,Community Parks & Open Spaces - Neighbourhood Services,Buildings Maintenance - Responsive,18/12/2014,IJ00039340,128.59,J TOMLINSON LTD, 
East Lindsey District Council,http://statistics.data.gov.uk/id/local-authority/32UC,Community Parks & Open Spaces - Neighbourhood Services,Buildings Maintenance - Responsive,18/12/2014,IJ00039340,152.25,J TOMLINSON LTD, 
East Lindsey District Council,http://statistics.data.gov.uk/id/local-authority/32UC,Community Parks & Open Spaces - Neighbourhood Services,Buildings Maintenance - Responsive,18/12/2014,IJ00039340,50.88,J TOMLINSON LTD, 
East Lindsey District Council,http://statistics.data.gov.uk/id/local-authority/32UC,Community Parks & Open Spaces - Neighbourhood Services,Buildings Maintenance - Responsive,18/12/2014,IJ00039340,278.77,J TOMLINSON LTD, 
East Lindsey District Council,http://statistics.data.gov.uk/id/local-authority/32UC,Community Parks & Open Spaces - Neighbourhood Services,Buildings Maintenance - Responsive,18/12/2014,IJ00039340,79.75,J TOMLINSON LTD, 
East Lindsey District Council,http://statistics.data.gov.uk/id/local-authority/32UC,Community Parks & Open Spaces - Neighbourhood Services,Buildings Maintenance - Responsive,18/12/2014,IJ00039340,21.00,J TOMLINSON LTD, 
East Lindsey District Council,http://statistics.data.gov.uk/id/local-authority/32UC,Community Parks & Open Spaces - Neighbourhood Services,Buildings Maintenance - Responsive,18/12/2014,IJ00039340,68.25,J TOMLINSON LTD, 
East Lindsey District Council,http://statistics.data.gov.uk/id/local-authority/32UC,Community Parks & Open Spaces - Neighbourhood Services,Buildings Maintenance - Responsive,18/12/2014,IJ00039340,91.35,J TOMLINSON LTD, 
East Lindsey District Council,http://statistics.data.gov.uk/id/local-authority/32UC,Foreshore - Theatre,Buildings Maintenance - Responsive,18/12/2014,IJ00039340,75.44,J TOMLINSON LTD, 
East Lindsey District Council,http://statistics.data.gov.uk/id/local-authority/32UC,Foreshore - Theatre,Buildings Maintenance - Responsive,18/12/2014,IJ00039340,328.01,J TOMLINSON LTD, 
East Lindsey District Council,http://statistics.data.gov.uk/id/local-authority/32UC,Foreshore - Theatre,Buildings Maintenance - Responsive,18/12/2014,IJ00039340,132.24,J TOMLINSON LTD, 
East Lindsey District Council,http://statistics.data.gov.uk/id/local-authority/32UC,Foreshore - Theatre,Buildings Maintenance - Responsive,18/12/2014,IJ00039340,31.50,J TOMLINSON LTD, 
East Lindsey District Council,http://statistics.data.gov.uk/id/local-authority/32UC,Foreshore - Theatre,Buildings Maintenance - Responsive,18/12/2014,IJ00039340,304.62,J TOMLINSON LTD, 
East Lindsey District Council,http://statistics.data.gov.uk/id/local-authority/32UC,Foreshore Skegness,Buildings Maintenance - Responsive,18/12/2014,IJ00039340,47.25,J TOMLINSON LTD, 
East Lindsey District Council,http://statistics.data.gov.uk/id/local-authority/32UC,Foreshore Skegness,Buildings Maintenance - Responsive,18/12/2014,IJ00039340,222.11,J TOMLINSON LTD, 
East Lindsey District Council,http://statistics.data.gov.uk/id/local-authority/32UC,Foreshore Skegness,Buildings Maintenance - Responsive,18/12/2014,IJ00039340,21.00,J TOMLINSON LTD, 
East Lindsey District Council,http://statistics.data.gov.uk/id/local-authority/32UC,Foreshore Skegness,Buildings Maintenance - Responsive,18/12/2014,IJ00039340,169.57,J TOMLINSON LTD, 
East Lindsey District Council,http://statistics.data.gov.uk/id/local-authority/32UC,ED: General Marketing & Promotion,Buildings Maintenance - Responsive,18/12/2014,IJ00039340,26.25,J TOMLINSON LTD, 
East Lindsey District Council,http://statistics.data.gov.uk/id/local-authority/32UC,Public Buildings,Buildings Maintenance - Responsive,18/12/2014,IJ00039340,32.34,J TOMLINSON LTD, 
East Lindsey District Council,http://statistics.data.gov.uk/id/local-authority/32UC,Public Buildings,Buildings Maintenance - Responsive,18/12/2014,IJ00039340,110.25,J TOMLINSON LTD, 
East Lindsey District Council,http://statistics.data.gov.uk/id/local-authority/32UC,Public Buildings,Buildings Maintenance - Responsive,18/12/2014,IJ00039340,36.75,J TOMLINSON LTD, 
East Lindsey District Council,http://statistics.data.gov.uk/id/local-authority/32UC,Public Buildings,Buildings Maintenance - Responsive,18/12/2014,IJ00039340,15.75,J TOMLINSON LTD, 
East Lindsey District Council,http://statistics.data.gov.uk/id/local-authority/32UC,Public Buildings,Buildings Maintenance - Responsive,18/12/2014,IJ00039340,52.50,J TOMLINSON LTD, 
East Lindsey District Council,http://statistics.data.gov.uk/id/local-authority/32UC,Public Buildings,Buildings Maintenance - Responsive,18/12/2014,IJ00039340,42.00,J TOMLINSON LTD, 
East Lindsey District Council,http://statistics.data.gov.uk/id/local-authority/32UC,Public Buildings,Buildings Maintenance - Responsive,18/12/2014,IJ00039340,360.54,J TOMLINSON LTD, 
East Lindsey District Council,http://statistics.data.gov.uk/id/local-authority/32UC,PPE Other Land & Buildings,Buildings Maintenance - Responsive,18/12/2014,IJ00039340,77.10,J TOMLINSON LTD, 
East Lindsey District Council,http://statistics.data.gov.uk/id/local-authority/32UC,Public Buildings,Buildings Maintenance - Responsive,18/12/2014,IJ00039340,324.76,J TOMLINSON LTD, 
East Lindsey District Council,http://statistics.data.gov.uk/id/local-authority/32UC,Public Buildings,Buildings Maintenance - Responsive,18/12/2014,IJ00039340,105.00,J TOMLINSON LTD, 
East Lindsey District Council,http://statistics.data.gov.uk/id/local-authority/32UC,Public Buildings,Buildings Maintenance - Responsive,18/12/2014,IJ00039340,82.52,J TOMLINSON LTD, 
East Lindsey District Council,http://statistics.data.gov.uk/id/local-authority/32UC,Meridian Leisure Centre,Buildings Maintenance - Responsive,18/12/2014,IJ00039340,526.92,J TOMLINSON LTD, 
East Lindsey District Council,http://statistics.data.gov.uk/id/local-authority/32UC,Public Conveniences,Buildings Maintenance - Responsive,18/12/2014,IJ00039340,42.00,J TOMLINSON LTD, 
East Lindsey District Council,http://statistics.data.gov.uk/id/local-authority/32UC,Public Conveniences,Buildings Maintenance - Responsive,18/12/2014,IJ00039340,21.00,J TOMLINSON LTD, 
East Lindsey District Council,http://statistics.data.gov.uk/id/local-authority/32UC,Swimming Pool(Coronation Wk)H/Castle,Buildings Maintenance - Responsive,18/12/2014,IJ00039340,392.80,J TOMLINSON LTD, 
East Lindsey District Council,http://statistics.data.gov.uk/id/local-authority/32UC,Swimming Pool(Coronation Wk)H/Castle,Buildings Maintenance - Responsive,18/12/2014,IJ00039340,21.00,J TOMLINSON LTD, 
East Lindsey District Council,http://statistics.data.gov.uk/id/local-authority/32UC,Public Conveniences,Buildings Maintenance - Responsive,18/12/2014,IJ00039340,69.10,J TOMLINSON LTD, 
East Lindsey District Council,http://statistics.data.gov.uk/id/local-authority/32UC,Public Conveniences,Buildings Maintenance - Responsive,18/12/2014,IJ00039340,179.06,J TOMLINSON LTD, 
East Lindsey District Council,http://statistics.data.gov.uk/id/local-authority/32UC,Car Parks General,Buildings Maintenance - Responsive,18/12/2014,IJ00039340,121.80,J TOMLINSON LTD, 
East Lindsey District Council,http://statistics.data.gov.uk/id/local-authority/32UC,PPE Other Land & Buildings,Buildings Maintenance - Responsive,18/12/2014,IJ00039340,1285.84,J TOMLINSON LTD, 
East Lindsey District Council,http://statistics.data.gov.uk/id/local-authority/32UC,PPE Other Land & Buildings,Buildings Maintenance - Responsive,18/12/2014,IJ00039340,151.45,J TOMLINSON LTD, 
East Lindsey District Council,http://statistics.data.gov.uk/id/local-authority/32UC,Public Conveniences,Buildings Maintenance - Responsive,18/12/2014,IJ00039340,21.00,J TOMLINSON LTD, 
East Lindsey District Council,http://statistics.data.gov.uk/id/local-authority/32UC,Public Conveniences,Buildings Maintenance - Responsive,18/12/2014,IJ00039340,199.76,J TOMLINSON LTD, 
East Lindsey District Council,http://statistics.data.gov.uk/id/local-authority/32UC,Public Conveniences,Buildings Maintenance - Responsive,18/12/2014,IJ00039340,156.06,J TOMLINSON LTD, 
East Lindsey District Council,http://statistics.data.gov.uk/id/local-authority/32UC,Public Conveniences,Buildings Maintenance - Responsive,18/12/2014,IJ00039340,26.25,J TOMLINSON LTD, 
East Lindsey District Council,http://statistics.data.gov.uk/id/local-authority/32UC,Public Conveniences,Buildings Maintenance - Responsive,18/12/2014,IJ00039340,118.58,J TOMLINSON LTD, 
East Lindsey District Council,http://statistics.data.gov.uk/id/local-authority/32UC,Public Conveniences,Buildings Maintenance - Responsive,18/12/2014,IJ00039340,21.00,J TOMLINSON LTD, 
East Lindsey District Council,http://statistics.data.gov.uk/id/local-authority/32UC,Public Conveniences,Buildings Maintenance - Responsive,18/12/2014,IJ00039340,26.25,J TOMLINSON LTD, 
East Lindsey District Council,http://statistics.data.gov.uk/id/local-authority/32UC,Public Conveniences,Buildings Maintenance - Responsive,18/12/2014,IJ00039340,74.36,J TOMLINSON LTD, 
East Lindsey District Council,http://statistics.data.gov.uk/id/local-authority/32UC,Public Conveniences,Buildings Maintenance - Responsive,18/12/2014,IJ00039340,26.25,J TOMLINSON LTD, 
East Lindsey District Council,http://statistics.data.gov.uk/id/local-authority/32UC,Public Conveniences,Buildings Maintenance - Responsive,18/12/2014,IJ00039340,226.45,J TOMLINSON LTD, 
East Lindsey District Council,http://statistics.data.gov.uk/id/local-authority/32UC,Public Conveniences,Buildings Maintenance - Responsive,18/12/2014,IJ00039340,51.74,J TOMLINSON LTD, 
East Lindsey District Council,http://statistics.data.gov.uk/id/local-authority/32UC,Public Conveniences,Buildings Maintenance - Responsive,18/12/2014,IJ00039340,26.25,J TOMLINSON LTD, 
East Lindsey District Council,http://statistics.data.gov.uk/id/local-authority/32UC,Public Conveniences,Buildings Maintenance - Responsive,18/12/2014,IJ00039340,105.00,J TOMLINSON LTD, 
East Lindsey District Council,http://statistics.data.gov.uk/id/local-authority/32UC,Public Conveniences,Buildings Maintenance - Responsive,18/12/2014,IJ00039340,68.25,J TOMLINSON LTD, 
East Lindsey District Council,http://statistics.data.gov.uk/id/local-authority/32UC,Public Conveniences,Buildings Maintenance - Responsive,18/12/2014,IJ00039340,36.75,J TOMLINSON LTD, 
East Lindsey District Council,http://statistics.data.gov.uk/id/local-authority/32UC,Public Conveniences,Buildings Maintenance - Responsive,18/12/2014,IJ00039340,42.00,J TOMLINSON LTD, 
East Lindsey District Council,http://statistics.data.gov.uk/id/local-authority/32UC,Public Buildings,Buildings Maintenance - Responsive,18/12/2014,IJ00039340,93.62,J TOMLINSON LTD, 
East Lindsey District Council,http://statistics.data.gov.uk/id/local-authority/32UC,Public Conveniences,Buildings Maintenance - Responsive,18/12/2014,IJ00039340,98.74,J TOMLINSON LTD, 
East Lindsey District Council,http://statistics.data.gov.uk/id/local-authority/32UC,Station Sports Centre,Buildings Maintenance - Responsive,18/12/2014,IJ00039340,42.00,J TOMLINSON LTD, 
East Lindsey District Council,http://statistics.data.gov.uk/id/local-authority/32UC,Station Sports Centre,Buildings Maintenance - Responsive,18/12/2014,IJ00039340,73.50,J TOMLINSON LTD, 
East Lindsey District Council,http://statistics.data.gov.uk/id/local-authority/32UC,Station Sports Centre,Buildings Maintenance - Responsive,18/12/2014,IJ00039340,544.19,J TOMLINSON LTD, 
East Lindsey District Council,http://statistics.data.gov.uk/id/local-authority/32UC,Station Sports Centre,Buildings Maintenance - Responsive,18/12/2014,IJ00039340,380.80,J TOMLINSON LTD, 
East Lindsey District Council,http://statistics.data.gov.uk/id/local-authority/32UC,PPE Other Land & Buildings,Buildings Maintenance - Responsive,18/12/2014,IJ00039340,108.21,J TOMLINSON LTD, 
East Lindsey District Council,http://statistics.data.gov.uk/id/local-authority/32UC,PPE Other Land & Buildings,Buildings Maintenance - Responsive,18/12/2014,IJ00039340,120.75,J TOMLINSON LTD, 
East Lindsey District Council,http://statistics.data.gov.uk/id/local-authority/32UC,Car Parks General,Buildings Maintenance - Responsive,18/12/2014,IJ00039340,371.78,J TOMLINSON LTD, 
East Lindsey District Council,http://statistics.data.gov.uk/id/local-authority/32UC,Car Parks General,Buildings Maintenance - Responsive,18/12/2014,IJ00039340,89.53,J TOMLINSON LTD, 
East Lindsey District Council,http://statistics.data.gov.uk/id/local-authority/32UC,Car Parks General,Buildings Maintenance - Responsive,18/12/2014,IJ00039340,589.06,J TOMLINSON LTD, 
East Lindsey District Council,http://statistics.data.gov.uk/id/local-authority/32UC,Public Buildings,Buildings Maintenance - Responsive,18/12/2014,IJ00039340,122.48,J TOMLINSON LTD, 
East Lindsey District Council,http://statistics.data.gov.uk/id/local-authority/32UC,Public Buildings,Buildings Maintenance - Responsive,18/12/2014,IJ00039340,55.95,J TOMLINSON LTD, 
East Lindsey District Council,http://statistics.data.gov.uk/id/local-authority/32UC,Car Parks General,Buildings Maintenance - Responsive,18/12/2014,IJ00039340,156.27,J TOMLINSON LTD, 
East Lindsey District Council,http://statistics.data.gov.uk/id/local-authority/32UC,Car Parks General,Buildings Maintenance - Responsive,18/12/2014,IJ00039340,168.00,J TOMLINSON LTD, 
East Lindsey District Council,http://statistics.data.gov.uk/id/local-authority/32UC,Public Conveniences,Buildings Maintenance - Responsive,18/12/2014,IJ00039340,42.00,J TOMLINSON LTD, 
East Lindsey District Council,http://statistics.data.gov.uk/id/local-authority/32UC,Public Conveniences,Buildings Maintenance - Responsive,18/12/2014,IJ00039340,432.90,J TOMLINSON LTD, 
East Lindsey District Council,http://statistics.data.gov.uk/id/local-authority/32UC,PPE Other Land & Buildings,Buildings Maintenance - Responsive,18/12/2014,IJ00039340,294.80,J TOMLINSON LTD, 
East Lindsey District Council,http://statistics.data.gov.uk/id/local-authority/32UC,Car Parks General,Buildings Maintenance - Responsive,18/12/2014,IJ00039340,47.25,J TOMLINSON LTD, 
East Lindsey District Council,http://statistics.data.gov.uk/id/local-authority/32UC,Sutton Multi Activity Community Area,Buildings Maintenance - Responsive,18/12/2014,IJ00039340,330.95,J TOMLINSON LTD, 
East Lindsey District Council,http://statistics.data.gov.uk/id/local-authority/32UC,Skegness Bowls,Buildings Maintenance - Responsive,18/12/2014,IJ00039340,76.16,J TOMLINSON LTD, 
East Lindsey District Council,http://statistics.data.gov.uk/id/local-authority/32UC,Public Conveniences,Buildings Maintenance - Responsive,18/12/2014,IJ00039340,21.00,J TOMLINSON LTD, 
East Lindsey District Council,http://statistics.data.gov.uk/id/local-authority/32UC,Public Conveniences,Buildings Maintenance - Responsive,18/12/2014,IJ00039340,21.00,J TOMLINSON LTD, 
East Lindsey District Council,http://statistics.data.gov.uk/id/local-authority/32UC,Outdoor Sport & Recreation - Neighbourhood Services,Buildings Maintenance - Responsive,18/12/2014,IJ00039340,20.00,J TOMLINSON LTD, 
East Lindsey District Council,http://statistics.data.gov.uk/id/local-authority/32UC,Car Parks General,Buildings Maintenance - Responsive,18/12/2014,IJ00039340,265.85,J TOMLINSON LTD, 
East Lindsey District Council,http://statistics.data.gov.uk/id/local-authority/32UC,Car Parks General,Buildings Maintenance - Responsive,18/12/2014,IJ00039340,20.00,J TOMLINSON LTD, 
East Lindsey District Council,http://statistics.data.gov.uk/id/local-authority/32UC,Car Parks General,Buildings Maintenance - Responsive,18/12/2014,IJ00039340,31.50,J TOMLINSON LTD, 
East Lindsey District Council,http://statistics.data.gov.uk/id/local-authority/32UC,Public Conveniences,Buildings Maintenance - Responsive,18/12/2014,IJ00039340,52.50,J TOMLINSON LTD, 
East Lindsey District Council,http://statistics.data.gov.uk/id/local-authority/32UC,Public Conveniences,Buildings Maintenance - Responsive,18/12/2014,IJ00039340,418.80,J TOMLINSON LTD, 
East Lindsey District Council,http://statistics.data.gov.uk/id/local-authority/32UC,Public Conveniences,Buildings Maintenance - Responsive,18/12/2014,IJ00039340,88.07,J TOMLINSON LTD, 
East Lindsey District Council,http://statistics.data.gov.uk/id/local-authority/32UC,Public Conveniences,Buildings Maintenance - Responsive,18/12/2014,IJ00039340,73.50,J TOMLINSON LTD, 
East Lindsey District Council,http://statistics.data.gov.uk/id/local-authority/32UC,Public Conveniences,Buildings Maintenance - Responsive,18/12/2014,IJ00039340,89.97,J TOMLINSON LTD, 
East Lindsey District Council,http://statistics.data.gov.uk/id/local-authority/32UC,Public Conveniences,Buildings Maintenance - Responsive,18/12/2014,IJ00039340,47.25,J TOMLINSON LTD, 
East Lindsey District Council,http://statistics.data.gov.uk/id/local-authority/32UC,Public Conveniences,Buildings Maintenance - Responsive,18/12/2014,IJ00039340,168.00,J TOMLINSON LTD, 
East Lindsey District Council,http://statistics.data.gov.uk/id/local-authority/32UC,Public Conveniences,Buildings Maintenance - Responsive,18/12/2014,IJ00039340,128.17,J TOMLINSON LTD, 
East Lindsey District Council,http://statistics.data.gov.uk/id/local-authority/32UC,Public Conveniences,Buildings Maintenance - Responsive,18/12/2014,IJ00039340,21.00,J TOMLINSON LTD, 
East Lindsey District Council,http://statistics.data.gov.uk/id/local-authority/32UC,Public Conveniences,Buildings Maintenance - Responsive,18/12/2014,IJ00039340,83.33,J TOMLINSON LTD, 
East Lindsey District Council,http://statistics.data.gov.uk/id/local-authority/32UC,Public Conveniences,Buildings Maintenance - Responsive,18/12/2014,IJ00039340,96.52,J TOMLINSON LTD, 
East Lindsey District Council,http://statistics.data.gov.uk/id/local-authority/32UC,Public Conveniences,Buildings Maintenance - Responsive,18/12/2014,IJ00039340,26.44,J TOMLINSON LTD, 
East Lindsey District Council,http://statistics.data.gov.uk/id/local-authority/32UC,PPE Other Land & Buildings,Buildings Maintenance - Responsive,18/12/2014,IJ00039340,105.55,J TOMLINSON LTD, 
East Lindsey District Council,http://statistics.data.gov.uk/id/local-authority/32UC,Car Parks General,Buildings Maintenance - Responsive,18/12/2014,IJ00039340,84.00,J TOMLINSON LTD, 
East Lindsey District Council,http://statistics.data.gov.uk/id/local-authority/32UC,Car Parks General,Buildings Maintenance - Responsive,18/12/2014,IJ00039340,75.19,J TOMLINSON LTD, 
East Lindsey District Council,http://statistics.data.gov.uk/id/local-authority/32UC,Cemeteries - Neighbourhood Services,Buildings Maintenance - Responsive,18/12/2014,IJ00039340,57.75,J TOMLINSON LTD, 
East Lindsey District Council,http://statistics.data.gov.uk/id/local-authority/32UC,Community Parks & Open Spaces - Property,Buildings Maintenance - Responsive,18/12/2014,IJ00039340,341.44,J TOMLINSON LTD, 
East Lindsey District Council,http://statistics.data.gov.uk/id/local-authority/32UC,PPE Other Land & Buildings,Buildings Maintenance - Responsive,18/12/2014,IJ00039340,52.50,J TOMLINSON LTD, 
East Lindsey District Council,http://statistics.data.gov.uk/id/local-authority/32UC,Public Conveniences,Buildings Maintenance - Responsive,18/12/2014,IJ00039340,439.08,J TOMLINSON LTD, 
East Lindsey District Council,http://statistics.data.gov.uk/id/local-authority/32UC,Public Conveniences,Water and Sewerage Charges,18/12/2014,IJ00039266,580.91,ANGLIAN WATER, 
East Lindsey District Council,http://statistics.data.gov.uk/id/local-authority/32UC,Public Conveniences,Water and Sewerage Charges,18/12/2014,IJ00039268,1458.24,ANGLIAN WATER, 
East Lindsey District Council,http://statistics.data.gov.uk/id/local-authority/32UC,Public Conveniences,Water and Sewerage Charges,18/12/2014,IJ00039269,602.82,ANGLIAN WATER, 
East Lindsey District Council,http://statistics.data.gov.uk/id/local-authority/32UC,Member Services,Grants and Contributions to Outside Bodies- No Service Recei,18/12/2014,IJ00039250,1000.00,LIVES HOLTON LE CLAY, 
East Lindsey District Council,http://statistics.data.gov.uk/id/local-authority/32UC,Development Control,"Books, Magazines and Other Publications",18/12/2014,IJ00039214,1423.00,THOMSON REUTERS, 
East Lindsey District Council,http://statistics.data.gov.uk/id/local-authority/32UC,Licensing General,"Books, Magazines and Other Publications",18/12/2014,IJ00039314,520.00,THOMSON REUTERS, 
East Lindsey District Council,http://statistics.data.gov.uk/id/local-authority/32UC,Premises Development - Neighbourhood Services,Buildings Maintenance - Responsive,18/12/2014,IJ00039284,748.00,XYLEM WATER SOLUTIONS UK LTD, 
East Lindsey District Council,http://statistics.data.gov.uk/id/local-authority/32UC,Meridian Leisure Centre,Buildings Maintenance - Programmed,18/12/2014,IJ00039275,7280.00,BEN TASKER FLOORING & INTERIORS LTD, 
East Lindsey District Council,http://statistics.data.gov.uk/id/local-authority/32UC,Car Parks General,Fuel & Oil,18/12/2014,IJ00039196,140.88,AllStar Business Solutions Ltd, 
East Lindsey District Council,http://statistics.data.gov.uk/id/local-authority/32UC,Area Working South,Fuel & Oil,18/12/2014,IJ00039196,1140.49,AllStar Business Solutions Ltd, 
East Lindsey District Council,http://statistics.data.gov.uk/id/local-authority/32UC,Area Working North,Fuel & Oil,18/12/2014,IJ00039196,505.48,AllStar Business Solutions Ltd, 
East Lindsey District Council,http://statistics.data.gov.uk/id/local-authority/32UC,Homelessness,Fuel & Oil,18/12/2014,IJ00039196,58.33,AllStar Business Solutions Ltd, 
East Lindsey District Council,http://statistics.data.gov.uk/id/local-authority/32UC,Street Cleaning,Fuel & Oil,18/12/2014,IJ00039196,653.85,AllStar Business Solutions Ltd, 
East Lindsey District Council,http://statistics.data.gov.uk/id/local-authority/32UC,Register of Electors,Postages,18/12/2014,IJ00039299,1106.64,Print.UK.com, 
East Lindsey District Council,http://statistics.data.gov.uk/id/local-authority/32UC,Cultural Activities,Other Miscellaneous Expenses,18/12/2014,IJ00039171,513.39,Viva Chamber Orchestra Limited, 
East Lindsey District Council,http://statistics.data.gov.uk/id/local-authority/32UC,Cultural Activities,Performers and Entertainers Fees,18/12/2014,IJ00039330,5000.00,Viva Chamber Orchestra Limited, 
East Lindsey District Council,http://statistics.data.gov.uk/id/local-authority/32UC,Household & Trade Refuse Coll. General,Commercial Vehicle Lease,18/12/2014,IJ00039206,4953.18,Kier FPS Limited, 
East Lindsey District Council,http://statistics.data.gov.uk/id/local-authority/32UC,Area Working North,Commercial Vehicle Lease,18/12/2014,IJ00039206,5204.83,Kier FPS Limited, 
East Lindsey District Council,http://statistics.data.gov.uk/id/local-authority/32UC,Area Working South,Commercial Vehicle Lease,18/12/2014,IJ00039206,10409.66,Kier FPS Limited, 
East Lindsey District Council,http://statistics.data.gov.uk/id/local-authority/32UC,Cultural Activities,Other Miscellaneous Expenses,18/12/2014,IJ00039194,550.00,Spilsby Theatre, 
East Lindsey District Council,http://statistics.data.gov.uk/id/local-authority/32UC,Cultural Activities,Other Miscellaneous Expenses,18/12/2014,IJ00039195,900.00,Spilsby Theatre, 
East Lindsey District Council,http://statistics.data.gov.uk/id/local-authority/32UC,Register of Electors,External Printing and Design Costs,18/12/2014,IJ00039181,3193.68,ELECTORAL REFORM SERVICES, 
East Lindsey District Council,http://statistics.data.gov.uk/id/local-authority/32UC,Corporate Management,Computer Software Purchase,18/12/2014,IJ00039175,1175.00,Inform CPI Ltd, 
East Lindsey District Council,http://statistics.data.gov.uk/id/local-authority/32UC,Public Relations,Professional & Contractors Fees,18/12/2014,IJ00039248,8360.00,Capita Asset Services, 
East Lindsey District Council,http://statistics.data.gov.uk/id/local-authority/32UC,Household & Trade Refuse Coll. General,Tyres,18/12/2014,IJ00039327,6073.61,Vacu Lug Traction Tyres Ltd, 
East Lindsey District Council,http://statistics.data.gov.uk/id/local-authority/32UC,Enabling Activities Housing Development,Other Private Contractors,18/12/2014,IJ00039249,19426.55,CapacityGrid, 
East Lindsey District Council,http://statistics.data.gov.uk/id/local-authority/32UC,Capital WIP,"Purchase of Plant, Machinery & Equipment",18/12/2014,IJ00039239,25600.00,FREEWATT LTD, 
East Lindsey District Council,http://statistics.data.gov.uk/id/local-authority/32UC,Private Sector Housing Renovation Grants,Grants and Contributions to Outside Bodies- No Service Recei,18/12/2014,IJ00039303,6000.00,D A and S Todd Ltd, 
East Lindsey District Council,http://statistics.data.gov.uk/id/local-authority/32UC,IT - System Support,Professional & Contractors Fees,18/12/2014,IJ00039172,756.09,Hitachi Solutions Europe Ltd, 
East Lindsey District Council,http://statistics.data.gov.uk/id/local-authority/32UC,IT - System Support,Professional & Contractors Fees,18/12/2014,IJ00039173,27526.25,Hitachi Solutions Europe Ltd, 
East Lindsey District Council,http://statistics.data.gov.uk/id/local-authority/32UC,Tourism,Grants and Contributions to Outside Bodies- No Service Recei,18/12/2014,IJ00039166,40000.00,Luxus Ltd, 
East Lindsey District Council,http://statistics.data.gov.uk/id/local-authority/32UC,Tourism,Grants and Contributions to Outside Bodies- No Service Recei,18/12/2014,IJ00039166,10000.00,Luxus Ltd, 
East Lindsey District Council,http://statistics.data.gov.uk/id/local-authority/32UC,Embassy Swimming Pool(Skegness),Other agencies,23/12/2014,IJ00039376,3785.00,COMPETITION LINE (UK) LTD, 
East Lindsey District Council,http://statistics.data.gov.uk/id/local-authority/32UC,Embassy Swimming Pool(Skegness),Compensation,23/12/2014,IJ00039376,244031.00,COMPETITION LINE (UK) LTD, 
East Lindsey District Council,http://statistics.data.gov.uk/id/local-authority/32UC,Capital WIP,"Purchase of Plant, Machinery & Equipment",23/12/2014,IJ00039376,16000.00,COMPETITION LINE (UK) LTD, 
East Lindsey District Council,http://statistics.data.gov.uk/id/local-authority/32UC,Swimming Pool(Coronation Wk)H/Castle,Other agencies,23/12/2014,IJ00039377,7349.00,COMPETITION LINE (UK) LTD, 
East Lindsey District Council,http://statistics.data.gov.uk/id/local-authority/32UC,Capital WIP,"Purchase of Plant, Machinery & Equipment",23/12/2014,IJ00039377,17000.00,COMPETITION LINE (UK) LTD, 
East Lindsey District Council,http://statistics.data.gov.uk/id/local-authority/32UC,Swimming Pool(Coronation Wk)H/Castle,Compensation,23/12/2014,IJ00039377,143606.00,COMPETITION LINE (UK) LTD, 
East Lindsey District Council,http://statistics.data.gov.uk/id/local-authority/32UC,Collection Fund,Precept - Lincolnshire Police,23/12/2014,IJ00039463,789708.10,LOCAL POLICE AUTHORITY FUND ACCOUNT, 
East Lindsey District Council,http://statistics.data.gov.uk/id/local-authority/32UC,Property Management,Other Revenue Grants Reimbursements & Contributions (Govt),23/12/2014,IJ00039439,22149.00,BOSTON BOROUGH COUNCIL, 
East Lindsey District Council,http://statistics.data.gov.uk/id/local-authority/32UC,Public Conveniences,Professional & Contractors Fees,23/12/2014,IJ00039436,150.45,PHS GROUP PLC, 
East Lindsey District Council,http://statistics.data.gov.uk/id/local-authority/32UC,Public Conveniences,Professional & Contractors Fees,23/12/2014,IJ00039436,49.05,PHS GROUP PLC, 
East Lindsey District Council,http://statistics.data.gov.uk/id/local-authority/32UC,Public Conveniences,Professional & Contractors Fees,23/12/2014,IJ00039436,53.59,PHS GROUP PLC, 
East Lindsey District Council,http://statistics.data.gov.uk/id/local-authority/32UC,Public Conveniences,Professional & Contractors Fees,23/12/2014,IJ00039436,68.29,PHS GROUP PLC, 
East Lindsey District Council,http://statistics.data.gov.uk/id/local-authority/32UC,Public Conveniences,Professional & Contractors Fees,23/12/2014,IJ00039436,171.12,PHS GROUP PLC, 
East Lindsey District Council,http://statistics.data.gov.uk/id/local-authority/32UC,Public Conveniences,Professional & Contractors Fees,23/12/2014,IJ00039436,214.42,PHS GROUP PLC, 
East Lindsey District Council,http://statistics.data.gov.uk/id/local-authority/32UC,Public Conveniences,Professional & Contractors Fees,23/12/2014,IJ00039436,400.81,PHS GROUP PLC, 
East Lindsey District Council,http://statistics.data.gov.uk/id/local-authority/32UC,Public Conveniences,Professional & Contractors Fees,23/12/2014,IJ00039436,164.10,PHS GROUP PLC, 
East Lindsey District Council,http://statistics.data.gov.uk/id/local-authority/32UC,Public Conveniences,Professional & Contractors Fees,23/12/2014,IJ00039436,146.66,PHS GROUP PLC, 
East Lindsey District Council,http://statistics.data.gov.uk/id/local-authority/32UC,Public Conveniences,Professional & Contractors Fees,23/12/2014,IJ00039436,420.18,PHS GROUP PLC, 
East Lindsey District Council,http://statistics.data.gov.uk/id/local-authority/32UC,Public Conveniences,Professional & Contractors Fees,23/12/2014,IJ00039436,273.21,PHS GROUP PLC, 
East Lindsey District Council,http://statistics.data.gov.uk/id/local-authority/32UC,Public Conveniences,Professional & Contractors Fees,23/12/2014,IJ00039436,236.44,PHS GROUP PLC, 
East Lindsey District Council,http://statistics.data.gov.uk/id/local-authority/32UC,Public Conveniences,Professional & Contractors Fees,23/12/2014,IJ00039436,154.34,PHS GROUP PLC, 
East Lindsey District Council,http://statistics.data.gov.uk/id/local-authority/32UC,Public Conveniences,Professional & Contractors Fees,23/12/2014,IJ00039436,283.57,PHS GROUP PLC, 
East Lindsey District Council,http://statistics.data.gov.uk/id/local-authority/32UC,Public Conveniences,Professional & Contractors Fees,23/12/2014,IJ00039436,68.29,PHS GROUP PLC, 
East Lindsey District Council,http://statistics.data.gov.uk/id/local-authority/32UC,Public Conveniences,Professional & Contractors Fees,23/12/2014,IJ00039436,69.52,PHS GROUP PLC, 
East Lindsey District Council,http://statistics.data.gov.uk/id/local-authority/32UC,Public Conveniences,Professional & Contractors Fees,23/12/2014,IJ00039436,200.41,PHS GROUP PLC, 
East Lindsey District Council,http://statistics.data.gov.uk/id/local-authority/32UC,Public Conveniences,Professional & Contractors Fees,23/12/2014,IJ00039436,92.50,PHS GROUP PLC, 
East Lindsey District Council,http://statistics.data.gov.uk/id/local-authority/32UC,Public Conveniences,Professional & Contractors Fees,23/12/2014,IJ00039436,44.07,PHS GROUP PLC, 
East Lindsey District Council,http://statistics.data.gov.uk/id/local-authority/32UC,Public Conveniences,Professional & Contractors Fees,23/12/2014,IJ00039436,53.61,PHS GROUP PLC, 
East Lindsey District Council,http://statistics.data.gov.uk/id/local-authority/32UC,Public Conveniences,Professional & Contractors Fees,23/12/2014,IJ00039436,625.97,PHS GROUP PLC, 
East Lindsey District Council,http://statistics.data.gov.uk/id/local-authority/32UC,Property Management,Other Revenue Grants Reimbursements & Contributions (Govt),23/12/2014,IJ00039440,4250.00,SOUTH HOLLAND DISTRICT COUNCIL, 
East Lindsey District Council,http://statistics.data.gov.uk/id/local-authority/32UC,Taxation and Non-Specific Grants,Business Rates Tariff,23/12/2014,IJ00039464,742410.00,LINCOLNSHIRE COUNTY COUNCIL, 
East Lindsey District Council,http://statistics.data.gov.uk/id/local-authority/32UC,Collection Fund,Precept- Lincolnshire County Council,23/12/2014,IJ00039465,4341195.00,LINCOLNSHIRE COUNTY COUNCIL, 
East Lindsey District Council,http://statistics.data.gov.uk/id/local-authority/32UC,Collection Fund,Share of NDR Income - Lincolnshire,23/12/2014,IJ00039465,310145.00,LINCOLNSHIRE COUNTY COUNCIL, 
East Lindsey District Council,http://statistics.data.gov.uk/id/local-authority/32UC,Environmental Protection,Grants and Contributions to Outside Bodies- No Service Recei,23/12/2014,IJ00039471,12000.00,LINDSEY MARSH DRAINAGE BOARD, 
East Lindsey District Council,http://statistics.data.gov.uk/id/local-authority/32UC,Environmental Protection,Grants and Contributions to Outside Bodies- No Service Recei,23/12/2014,IJ00039473,9746.00,LINDSEY MARSH DRAINAGE BOARD, 
East Lindsey District Council,http://statistics.data.gov.uk/id/local-authority/32UC,Balance Sheet,Payroll-Unison,23/12/2014,IJ00039427,1667.90,UNISON, 
East Lindsey District Council,http://statistics.data.gov.uk/id/local-authority/32UC,ED: General Marketing & Promotion,Agency Staff,23/12/2014,IJ00039368,42.63,WORKFORCE UNLIMITED, 
East Lindsey District Council,http://statistics.data.gov.uk/id/local-authority/32UC,ED: General Marketing & Promotion,Agency Staff,23/12/2014,IJ00039368,768.75,WORKFORCE UNLIMITED, 
East Lindsey District Council,http://statistics.data.gov.uk/id/local-authority/32UC,Council Tax,Other Miscellaneous Expenses,23/12/2014,IJ00039405,3681.15,ALLPAY NET LTD, 
East Lindsey District Council,http://statistics.data.gov.uk/id/local-authority/32UC,Housing Benefits Administration,Other Miscellaneous Expenses,23/12/2014,IJ00039405,75.91,ALLPAY NET LTD, 
East Lindsey District Council,http://statistics.data.gov.uk/id/local-authority/32UC,Embassy Centre,Film and Entertainment Costs,23/12/2014,IJ00039451,6407.98,PERFORMING RIGHT SOCIETY LTD, 
East Lindsey District Council,http://statistics.data.gov.uk/id/local-authority/32UC,Area Working North,Materials and Consumables,23/12/2014,IJ00039354,683.58,ESPO, 
East Lindsey District Council,http://statistics.data.gov.uk/id/local-authority/32UC,Area Working South,Materials and Consumables,23/12/2014,IJ00039354,150.12,ESPO, 
East Lindsey District Council,http://statistics.data.gov.uk/id/local-authority/32UC,Meridian Leisure Centre,Stationery,23/12/2014,IJ00039354,27.18,ESPO, 
East Lindsey District Council,http://statistics.data.gov.uk/id/local-authority/32UC,Embassy Swimming Pool(Skegness),Furniture and Equipment,23/12/2014,IJ00039354,727.10,ESPO, 
East Lindsey District Council,http://statistics.data.gov.uk/id/local-authority/32UC,Swimming Pool(Coronation Wk)H/Castle,Cleaning Contract,23/12/2014,IJ00039354,294.42,ESPO, 
East Lindsey District Council,http://statistics.data.gov.uk/id/local-authority/32UC,Collection Fund,Central Share of NDR Income - Government,23/12/2014,IJ00039467,1682948.00,DEPARTMENT FOR COMMUNITIES AND LOCAL, 
East Lindsey District Council,http://statistics.data.gov.uk/id/local-authority/32UC,Collection Fund,Transitional Protection Payments,23/12/2014,IJ00039467,-7817.00,DEPARTMENT FOR COMMUNITIES AND LOCAL, 
East Lindsey District Council,http://statistics.data.gov.uk/id/local-authority/32UC,Collection Fund,Contribution to Deficit (NDR),23/12/2014,IJ00039467,-54688.00,DEPARTMENT FOR COMMUNITIES AND LOCAL, 
East Lindsey District Council,http://statistics.data.gov.uk/id/local-authority/32UC,Public Relations,Computer Software Licence Costs,23/12/2014,IJ00039357,699.00,SNAP SURVEYS LTD, 
East Lindsey District Council,http://statistics.data.gov.uk/id/local-authority/32UC,Balance Sheet,Payroll-Cons Group Savings,23/12/2014,IJ00039411,570.00,ELDC CONSERVATIVE GROUP, 
East Lindsey District Council,http://statistics.data.gov.uk/id/local-authority/32UC,Balance Sheet,Payroll-Gmbatu,23/12/2014,IJ00039423,722.08,GMB NATIONAL ADMINISTRATION UNIT, 
East Lindsey District Council,http://statistics.data.gov.uk/id/local-authority/32UC,Development Control,Banking Charges,23/12/2014,IJ00039398,5.78,CAPITA BUSINESS SERVICES LTD, 
East Lindsey District Council,http://statistics.data.gov.uk/id/local-authority/32UC,Corporate Management,Banking Charges,23/12/2014,IJ00039398,44.05,CAPITA BUSINESS SERVICES LTD, 
East Lindsey District Council,http://statistics.data.gov.uk/id/local-authority/32UC,Corporate Management,Banking Charges,23/12/2014,IJ00039398,2012.99,CAPITA BUSINESS SERVICES LTD, 
East Lindsey District Council,http://statistics.data.gov.uk/id/local-authority/32UC,Corporate Management,Banking Charges,23/12/2014,IJ00039398,43.53,CAPITA BUSINESS SERVICES LTD, 
East Lindsey District Council,http://statistics.data.gov.uk/id/local-authority/32UC,Corporate Management,Banking Charges,23/12/2014,IJ00039398,38.70,CAPITA BUSINESS SERVICES LTD, 
East Lindsey District Council,http://statistics.data.gov.uk/id/local-authority/32UC,Investment Income & Treasury,Banking Charges,23/12/2014,IJ00039398,1120.47,CAPITA BUSINESS SERVICES LTD, 
East Lindsey District Council,http://statistics.data.gov.uk/id/local-authority/32UC,Public Relations,Professional & Contractors Fees,23/12/2014,IJ00039462,8360.00,CAPITA BUSINESS SERVICES LTD, 
East Lindsey District Council,http://statistics.data.gov.uk/id/local-authority/32UC,IT - System Support,Computer Hardware Purchase,23/12/2014,IJ00039373,4005.00,BEST4SYSTEMS, 
East Lindsey District Council,http://statistics.data.gov.uk/id/local-authority/32UC,Area Working North,Staff Recruitment,23/12/2014,IJ00039389,205.00,COMPASS POINT BUSINESS SERVICES, 
East Lindsey District Council,http://statistics.data.gov.uk/id/local-authority/32UC,Member Services,Staff Recruitment,23/12/2014,IJ00039389,10.00,COMPASS POINT BUSINESS SERVICES, 
East Lindsey District Council,http://statistics.data.gov.uk/id/local-authority/32UC,Development Control,Staff Recruitment,23/12/2014,IJ00039389,10.00,COMPASS POINT BUSINESS SERVICES, 
East Lindsey District Council,http://statistics.data.gov.uk/id/local-authority/32UC,Household & Trade Refuse Coll. General,Staff Recruitment,23/12/2014,IJ00039389,609.00,COMPASS POINT BUSINESS SERVICES, 
East Lindsey District Council,http://statistics.data.gov.uk/id/local-authority/32UC,Meridian Leisure Centre,Staff Recruitment,23/12/2014,IJ00039389,30.00,COMPASS POINT BUSINESS SERVICES, 
East Lindsey District Council,http://statistics.data.gov.uk/id/local-authority/32UC,Elections,Staff Recruitment,23/12/2014,IJ00039389,10.00,COMPASS POINT BUSINESS SERVICES, 
East Lindsey District Council,http://statistics.data.gov.uk/id/local-authority/32UC,Property Management,Staff Recruitment,23/12/2014,IJ00039389,10.00,COMPASS POINT BUSINESS SERVICES, 
East Lindsey District Council,http://statistics.data.gov.uk/id/local-authority/32UC,Leisure Management General,Staff Recruitment,23/12/2014,IJ00039389,215.00,COMPASS POINT BUSINESS SERVICES, 
East Lindsey District Council,http://statistics.data.gov.uk/id/local-authority/32UC,Cultural Activities,Staff Recruitment,23/12/2014,IJ00039389,10.00,COMPASS POINT BUSINESS SERVICES, 
East Lindsey District Council,http://statistics.data.gov.uk/id/local-authority/32UC,Caravan Park (Kingfisher) Ingoldmells,Staff Recruitment,23/12/2014,IJ00039389,10.00,COMPASS POINT BUSINESS SERVICES, 
East Lindsey District Council,http://statistics.data.gov.uk/id/local-authority/32UC,Tourism,Staff Recruitment,23/12/2014,IJ00039389,10.00,COMPASS POINT BUSINESS SERVICES, 
East Lindsey District Council,http://statistics.data.gov.uk/id/local-authority/32UC,Land Charges,Staff Recruitment,23/12/2014,IJ00039389,20.00,COMPASS POINT BUSINESS SERVICES, 
East Lindsey District Council,http://statistics.data.gov.uk/id/local-authority/32UC,Caravan and Scrap Metal Licensing,Staff Recruitment,23/12/2014,IJ00039389,10.00,COMPASS POINT BUSINESS SERVICES, 
East Lindsey District Council,http://statistics.data.gov.uk/id/local-authority/32UC,Car Parks General,Staff Recruitment,23/12/2014,IJ00039389,215.00,COMPASS POINT BUSINESS SERVICES, 
East Lindsey District Council,http://statistics.data.gov.uk/id/local-authority/32UC,Wellbeing Service,Staff Recruitment,23/12/2014,IJ00039389,515.00,COMPASS POINT BUSINESS SERVICES, 
East Lindsey District Council,http://statistics.data.gov.uk/id/local-authority/32UC,Homelessness,Staff Recruitment,23/12/2014,IJ00039389,10.00,COMPASS POINT BUSINESS SERVICES, 
East Lindsey District Council,http://statistics.data.gov.uk/id/local-authority/32UC,Embassy Swimming Pool(Skegness),Staff Recruitment,23/12/2014,IJ00039389,10.00,COMPASS POINT BUSINESS SERVICES, 
East Lindsey District Council,http://statistics.data.gov.uk/id/local-authority/32UC,Station Sports Centre,Staff Recruitment,23/12/2014,IJ00039389,10.00,COMPASS POINT BUSINESS SERVICES, 
East Lindsey District Council,http://statistics.data.gov.uk/id/local-authority/32UC,Embassy Centre,Banking Charges,23/12/2014,IJ00039437,157.11,COMPASS POINT BUSINESS SERVICES, 
East Lindsey District Council,http://statistics.data.gov.uk/id/local-authority/32UC,Development Control,Telephones,23/12/2014,IJ00039437,393.36,COMPASS POINT BUSINESS SERVICES, 
East Lindsey District Council,http://statistics.data.gov.uk/id/local-authority/32UC,Development Control,Telephones,23/12/2014,IJ00039437,2043.69,COMPASS POINT BUSINESS SERVICES, 
East Lindsey District Council,http://statistics.data.gov.uk/id/local-authority/32UC,Development Control,Postages,23/12/2014,IJ00039437,1574.32,COMPASS POINT BUSINESS SERVICES, 
East Lindsey District Council,http://statistics.data.gov.uk/id/local-authority/32UC,Building Control - chargeable,Computer Hardware Purchase,23/12/2014,IJ00039437,1215.00,COMPASS POINT BUSINESS SERVICES, 
East Lindsey District Council,http://statistics.data.gov.uk/id/local-authority/32UC,Building Control - chargeable,Computer Software Purchase,23/12/2014,IJ00039437,49.50,COMPASS POINT BUSINESS SERVICES, 
East Lindsey District Council,http://statistics.data.gov.uk/id/local-authority/32UC,Cultural Activities,Advertising - Events,23/12/2014,IJ00039437,140.00,COMPASS POINT BUSINESS SERVICES, 
East Lindsey District Council,http://statistics.data.gov.uk/id/local-authority/32UC,Register of Electors,Postages,23/12/2014,IJ00039437,5194.06,COMPASS POINT BUSINESS SERVICES, 
East Lindsey District Council,http://statistics.data.gov.uk/id/local-authority/32UC,Member Services,Other Miscellaneous Expenses,23/12/2014,IJ00039437,25.00,COMPASS POINT BUSINESS SERVICES, 
East Lindsey District Council,http://statistics.data.gov.uk/id/local-authority/32UC,Commissioning & Grants,Other Miscellaneous Expenses,23/12/2014,IJ00039437,25.00,COMPASS POINT BUSINESS SERVICES, 
East Lindsey District Council,http://statistics.data.gov.uk/id/local-authority/32UC,Leisure Management General,Telephones,23/12/2014,IJ00039437,175.00,COMPASS POINT BUSINESS SERVICES, 
East Lindsey District Council,http://statistics.data.gov.uk/id/local-authority/32UC,Corporate Management,Professional & Contractors Fees,23/12/2014,IJ00039437,195.26,COMPASS POINT BUSINESS SERVICES, 
East Lindsey District Council,http://statistics.data.gov.uk/id/local-authority/32UC,IT - System Support,Computer Hardware Purchase,23/12/2014,IJ00039437,29.00,COMPASS POINT BUSINESS SERVICES, 
East Lindsey District Council,http://statistics.data.gov.uk/id/local-authority/32UC,IT - System Support,Computer Hardware Maintenance,23/12/2014,IJ00039437,35.99,COMPASS POINT BUSINESS SERVICES, 
East Lindsey District Council,http://statistics.data.gov.uk/id/local-authority/32UC,IT - System Support,Computer Software Licence Costs,23/12/2014,IJ00039437,325.40,COMPASS POINT BUSINESS SERVICES, 
East Lindsey District Council,http://statistics.data.gov.uk/id/local-authority/32UC,IT - System Support,Computer Software Licence Costs,23/12/2014,IJ00039437,23.31,COMPASS POINT BUSINESS SERVICES, 
East Lindsey District Council,http://statistics.data.gov.uk/id/local-authority/32UC,IT - System Support,Computer Hardware Purchase,23/12/2014,IJ00039437,180.90,COMPASS POINT BUSINESS SERVICES, 
East Lindsey District Council,http://statistics.data.gov.uk/id/local-authority/32UC,Meridian Leisure Centre,Court Costs,23/12/2014,IJ00039437,25.00,COMPASS POINT BUSINESS SERVICES, 
East Lindsey District Council,http://statistics.data.gov.uk/id/local-authority/32UC,Meridian Leisure Centre,Court Costs,23/12/2014,IJ00039437,50.00,COMPASS POINT BUSINESS SERVICES, 
East Lindsey District Council,http://statistics.data.gov.uk/id/local-authority/32UC,IT - System Support,Computer Software Licence Costs,23/12/2014,IJ00039437,1012.07,COMPASS POINT BUSINESS SERVICES, 
East Lindsey District Council,http://statistics.data.gov.uk/id/local-authority/32UC,Enabling Activities Housing Advice,Court Costs,23/12/2014,IJ00039437,25.00,COMPASS POINT BUSINESS SERVICES, 
East Lindsey District Council,http://statistics.data.gov.uk/id/local-authority/32UC,Enabling Activities Housing Advice,Court Costs,23/12/2014,IJ00039437,100.00,COMPASS POINT BUSINESS SERVICES, 
East Lindsey District Council,http://statistics.data.gov.uk/id/local-authority/32UC,Enabling Activities Housing Advice,Court Costs,23/12/2014,IJ00039437,35.00,COMPASS POINT BUSINESS SERVICES, 
East Lindsey District Council,http://statistics.data.gov.uk/id/local-authority/32UC,Enabling Activities Housing Advice,Court Costs,23/12/2014,IJ00039437,12.50,COMPASS POINT BUSINESS SERVICES, 
East Lindsey District Council,http://statistics.data.gov.uk/id/local-authority/32UC,Homelessness,Court Costs,23/12/2014,IJ00039437,60.00,COMPASS POINT BUSINESS SERVICES, 
East Lindsey District Council,http://statistics.data.gov.uk/id/local-authority/32UC,Homelessness,Court Costs,23/12/2014,IJ00039437,12.50,COMPASS POINT BUSINESS SERVICES, 
East Lindsey District Council,http://statistics.data.gov.uk/id/local-authority/32UC,Houses in Multiple Occupation,Court Costs,23/12/2014,IJ00039437,125.00,COMPASS POINT BUSINESS SERVICES, 
East Lindsey District Council,http://statistics.data.gov.uk/id/local-authority/32UC,Houses in Multiple Occupation,Court Costs,23/12/2014,IJ00039437,60.00,COMPASS POINT BUSINESS SERVICES, 
East Lindsey District Council,http://statistics.data.gov.uk/id/local-authority/32UC,Licensing General,Furniture and Equipment,23/12/2014,IJ00039437,47.99,COMPASS POINT BUSINESS SERVICES, 
East Lindsey District Council,http://statistics.data.gov.uk/id/local-authority/32UC,IT - System Support,External Printing and Design Costs,23/12/2014,IJ00039437,8532.79,COMPASS POINT BUSINESS SERVICES, 
East Lindsey District Council,http://statistics.data.gov.uk/id/local-authority/32UC,Embassy Swimming Pool(Skegness),Court Costs,23/12/2014,IJ00039437,100.00,COMPASS POINT BUSINESS SERVICES, 
East Lindsey District Council,http://statistics.data.gov.uk/id/local-authority/32UC,Station Sports Centre,Court Costs,23/12/2014,IJ00039437,50.00,COMPASS POINT BUSINESS SERVICES, 
East Lindsey District Council,http://statistics.data.gov.uk/id/local-authority/32UC,Station Sports Centre,Court Costs,23/12/2014,IJ00039437,25.00,COMPASS POINT BUSINESS SERVICES, 
East Lindsey District Council,http://statistics.data.gov.uk/id/local-authority/32UC,Street Scene Improvement & Development,Court Costs,23/12/2014,IJ00039437,25.00,COMPASS POINT BUSINESS SERVICES, 
East Lindsey District Council,http://statistics.data.gov.uk/id/local-authority/32UC,Swimming Pool(Coronation Wk)H/Castle,Court Costs,23/12/2014,IJ00039437,25.00,COMPASS POINT BUSINESS SERVICES, 
East Lindsey District Council,http://statistics.data.gov.uk/id/local-authority/32UC,Household & Trade Refuse Coll. General,CPBS Non Base Contract Costs,23/12/2014,IJ00039449,22856.96,COMPASS POINT BUSINESS SERVICES, 
East Lindsey District Council,http://statistics.data.gov.uk/id/local-authority/32UC,Member Services,Grants and Contributions to Outside Bodies- No Service Recei,23/12/2014,IJ00039441,500.00,BILSBY & FARLESTHORPE PARISH COUNCIL, 
East Lindsey District Council,http://statistics.data.gov.uk/id/local-authority/32UC,Leisure Management General,Advertising - Events,23/12/2014,IJ00039374,2433.40,GRS SIGN CO LTD, 
East Lindsey District Council,http://statistics.data.gov.uk/id/local-authority/32UC,London Road Sports Centre,Other Private Contractors,23/12/2014,IJ00039438,2975.00,A.E. GRAVES & SON, 
East Lindsey District Council,http://statistics.data.gov.uk/id/local-authority/32UC,London Road Sports Centre,Materials and Consumables,23/12/2014,IJ00039438,160.00,A.E. GRAVES & SON, 
East Lindsey District Council,http://statistics.data.gov.uk/id/local-authority/32UC,Embassy Centre,Advertising - Events,23/12/2014,IJ00039452,5097.00,JOHN GOOD LIMITED, 
East Lindsey District Council,http://statistics.data.gov.uk/id/local-authority/32UC,Corporate Management,Staff Training Expenses,23/12/2014,IJ00039380,982.80,ACT NOW TRAINING LTD, 
East Lindsey District Council,http://statistics.data.gov.uk/id/local-authority/32UC,Leisure Management General,Clothing Uniforms And Laundry,23/12/2014,IJ00039430,948.00,PRINTFORCE (STAFFS) LTD, 
East Lindsey District Council,http://statistics.data.gov.uk/id/local-authority/32UC,Leisure Management General,Clothing Uniforms And Laundry,23/12/2014,IJ00039432,5771.46,PRINTFORCE (STAFFS) LTD, 
East Lindsey District Council,http://statistics.data.gov.uk/id/local-authority/32UC,Leisure Management General,Clothing Uniforms And Laundry,23/12/2014,IJ00039433,1296.24,PRINTFORCE (STAFFS) LTD, 
East Lindsey District Council,http://statistics.data.gov.uk/id/local-authority/32UC,Leisure Management General,Clothing Uniforms And Laundry,23/12/2014,IJ00039434,1078.02,PRINTFORCE (STAFFS) LTD, 
East Lindsey District Council,http://statistics.data.gov.uk/id/local-authority/32UC,Leisure Management General,Clothing Uniforms And Laundry,23/12/2014,IJ00039435,1844.70,PRINTFORCE (STAFFS) LTD, 
East Lindsey District Council,http://statistics.data.gov.uk/id/local-authority/32UC,Tourism,Other Miscellaneous Expenses,23/12/2014,IJ00039372,24881.00,FRED MARKETING LTD, 
East Lindsey District Council,http://statistics.data.gov.uk/id/local-authority/32UC,Development Control,Professional & Contractors Fees,23/12/2014,IJ00039447,4100.00,FPCR ENVIRONMENT AND DESIGN LTD, 
East Lindsey District Council,http://statistics.data.gov.uk/id/local-authority/32UC,Property Management,Professional & Contractors Fees,23/12/2014,IJ00039366,562.50,Louth Education Community Interest Company, 
East Lindsey District Council,http://statistics.data.gov.uk/id/local-authority/32UC,Balance Sheet,Lincolnshire Credit Union,23/12/2014,IJ00039429,695.00,Lincolnshire Credit Union Ltd, 
East Lindsey District Council,http://statistics.data.gov.uk/id/local-authority/32UC,Car Parks General,Fuel & Oil,23/12/2014,IJ00039394,242.34,AllStar Business Solutions Ltd, 
East Lindsey District Council,http://statistics.data.gov.uk/id/local-authority/32UC,Area Working South,Fuel & Oil,23/12/2014,IJ00039394,1095.97,AllStar Business Solutions Ltd, 
East Lindsey District Council,http://statistics.data.gov.uk/id/local-authority/32UC,Area Working North,Fuel & Oil,23/12/2014,IJ00039394,477.41,AllStar Business Solutions Ltd, 
East Lindsey District Council,http://statistics.data.gov.uk/id/local-authority/32UC,Property Management,Fuel & Oil,23/12/2014,IJ00039394,61.82,AllStar Business Solutions Ltd, 
East Lindsey District Council,http://statistics.data.gov.uk/id/local-authority/32UC,Homelessness,Fuel & Oil,23/12/2014,IJ00039394,66.68,AllStar Business Solutions Ltd, 
East Lindsey District Council,http://statistics.data.gov.uk/id/local-authority/32UC,Street Cleaning,Fuel & Oil,23/12/2014,IJ00039394,892.02,AllStar Business Solutions Ltd, 
East Lindsey District Council,http://statistics.data.gov.uk/id/local-authority/32UC,Embassy Centre,Performers and Entertainers Fees,23/12/2014,IJ00039450,4095.35,John Healy Productions, 
East Lindsey District Council,http://statistics.data.gov.uk/id/local-authority/32UC,Embassy Centre,Performers and Entertainers Fees,23/12/2014,IJ00039450,-1438.61,John Healy Productions, 
East Lindsey District Council,http://statistics.data.gov.uk/id/local-authority/32UC,Household & Trade Refuse Coll. General,Agency Staff,23/12/2014,IJ00039469,1282.12,BIBBY FACTORS YORKSHIRE LIMITED, 
East Lindsey District Council,http://statistics.data.gov.uk/id/local-authority/32UC,ED: General Marketing & Promotion,Other Miscellaneous Expenses,23/12/2014,IJ00039378,1347.80,Redacted Personal Information,Redacted
East Lindsey District Council,http://statistics.data.gov.uk/id/local-authority/32UC,Leisure Management General,Other Employee Expenses,23/12/2014,IJ00039472,2880.00,SOUND ADVICE SAFETY AND HEALTH LTD, 
East Lindsey District Council,http://statistics.data.gov.uk/id/local-authority/32UC,London Road Sports Centre,Furniture and Equipment,23/12/2014,IJ00039367,6204.08,PMF Products Ltd, 
East Lindsey District Council,http://statistics.data.gov.uk/id/local-authority/32UC,Household & Trade Refuse Coll. General,Staff Training Expenses,23/12/2014,IJ00039459,1200.00,FOREFRONT TRAINING LTD, 
East Lindsey District Council,http://statistics.data.gov.uk/id/local-authority/32UC,Area Working South,Professional & Contractors Fees,23/12/2014,IJ00039460,789.55,S & K SPRAYER SERVICES LTD, 
East Lindsey District Council,http://statistics.data.gov.uk/id/local-authority/32UC,ED: General Marketing & Promotion,Other Miscellaneous Expenses,23/12/2014,IJ00039364,1106.00,Redacted Personal Information,Redacted
